Workbook

Sheet 1д.
A1: Согласовано: Главный специалист - эксперт территориального отдела Управления Роспотребнадзора по РТ (Татарстан) в Сабинском, Мамадышском, Кукморском районах: ____________ А.И.Камалова | F1: Утверждаю: МБДОУ "Урманчеевский ДС №1" ________ Г.М.Кашапова 01.09.2022г.
B2: Десятидневное меню
A3: день 1 | B3: наименование блюд | C3: кол-во | D3: брутто | E3: нетто | F3: Б | G3: Ж | H3: У | I3: Ккал | J3: С
A4: завтрак | B4: каша вязкая пшенная с маслом | C4: 200
B5: масло сливочное "крестьянское" | D5: 5 | E5: 5 | F5: 0.04 | G5: 3.63 | H5: 0.13 | I5: 33.05
B6: крупа пшено | D6: 20 | E6: 20 | H6: 0.34 | I6: 68.9
B7: сахар | D7: 5 | E7: 5 | H7: 4.99 | I7: 18.95
B8: соль поваренная йодиров. | D8: 1 | E8: 1
B9: молоко пастериз иодированное.2,5% | D9: 150 | E9: 150 | F9: 4.23 | G9: 3.75 | H9: 7.09 | I9: 78 | J9: 1.95
F10: 4.27 | G10: 7.38 | H10: 12.55 | I10: 198.9 | J10: =SUM(J5:J9) -> 1.95
B11: кофейный напиток с молоком | C11: 180
B12: кофейный напиток | D12: 3 | E12: 3 | H12: 0.084
B13: сахар | D13: 12 | E13: 12 | H13: 11.98 | I13: 45.48
B14: молоко пастериз.2,5% | D14: 150 | E14: 150 | F14: 4.27 | G14: 3.75 | H14: 7.09 | I14: 78 | J14: 1.95
F15: =SUM(F12:F14) -> 4.27 | G15: =SUM(G12:G14) -> 3.75 | H15: =SUM(H12:H14) -> 19.154 | I15: =SUM(I12:I14) -> 123.48 | J15: =SUM(J13:J14) -> 1.95
B16: Бутерброд с маслом и сыром | C16: 40/5/6
B17: хлеб пшеничный | C17: 40 | D17: 40 | E17: 40 | F17: 3.5 | G17: 0.6 | H17: 0.58 | I17: 83.6
B18: масло сливочное | D18: 5 | E18: 5 | F18: 0.04 | G18: 3.63 | H18: 0.13 | I18: 33.09
B19: сыр | D19: 5 | E19: 5 | F19: 1.56 | G19: 1.54 | I19: 20.28 | J19: 0.16
F20: =SUM(F17:F19) -> 5.1 | G20: =SUM(G17:G19) -> 5.77 | H20: =SUM(H17:H19) -> 0.71 | I20: =SUM(I17:I19) -> 136.97 | J20: =SUM(J17:J19) -> 0.16
A22: 2 завтрак | B22: сок яблочный | C22: 100 | F22: 0.3 | G22: 0.1 | H22: 12.3 | I22: 59 | J22: 1.1
F23: =F10+F15+F20+F22 -> 13.94 | G23: =G10+G15+G20+G22 -> 17 | H23: =-H10+H15+H20+H22 -> 19.614 | I23: =I10+I15+I20+I22 -> 518.35 | J23: =J10+J15+J20+J22 -> 5.16
A24: обед | B24: салат морковный | C24: 70
B25: морковь | D25: 90 | E25: 72 | F25: 1.17 | G25: 0.072 | H25: 5.18 | I25: 24.48 | J25: 3.6
B26: сахар | D26: 3 | E26: 3 | H26: 1.99 | I26: 11.37
F27: =SUM(F25:F26) -> 1.17 | G27: =SUM(G25:G26) -> 0.072 | H27: =SUM(H25:H26) -> 7.17 | I27: =SUM(I25:I26) -> 35.85 | J27: =SUM(J25:J26) -> 3.6
B28: суп вермишелевый на мк/б | C28: 200
B29: говядина | D29: 30 | E29: 22.5 | F29: 5.58 | G29: 3.6 | I29: 49.05
B30: морковь | D30: 13 | E30: 10.4 | F30: 0.169 | H30: 0.73 | I30: 3.54 | J30: 0.52
B31: лук | D31: 12 | E31: 10 | F31: 0.17 | G31: 0.01 | H31: 0.9 | I31: 4.13 | J31: 1.01
B32: вермишель | D32: 10 | E32: 10 | F32: 1 | G32: 0.11 | H32: 0.2 | I32: 33.7
B33: картофель | D33: 130 | E33: 86.4 | F33: 2.4 | G33: 0.34 | H33: 14.94 | I33: 69.12 | J33: 17.3
B34: масло сливочное | D34: 3 | E34: 3 | F34: 0.024 | G34: 2.18 | H34: 0.078 | I34: 19.83
B35: масло растительное | D35: 2 | E35: 2 | G35: 1.99 | I35: 17.98
B36: зелень | D36: 2 | E36: 2 | F36: 2 | G36: 1.16 | H36: 0.11 | I36: 0.78 | J36: 2.4
B37: соль поваренная йодиров. | D37: 1.5 | E37: 1.5
F38: =SUM(F29:F37) -> 11.343 | G38: =SUM(G29:G37) -> 9.39 | H38: =SUM(H29:H37) -> 16.958 | I38: =SUM(I29:I37) -> 198.13 | J38: =SUM(J29:J37) -> 21.23
B39: капуста тушеная с мясом | C39: 200
B40: капуста свежая | D40: 276 | E40: 220.8 | F40: 5 | G40: 0.22 | H40: 10.76
B41: масло растительное | D41: 5 | E41: 5 | G41: 4.99 | I41: 44.95
B42: морковь | D42: 12 | E42: 9.6 | F42: 0.2 | G42: 0.01 | H42: 0.67 | I42: 3.26 | J42: 0.48
B43: лук репчатый | D43: 18 | E43: 15.72 | H43: 1.36 | I43: 6.13 | J43: 1.51
B44: мясо | D44: 70 | E44: 50 | F44: 13.02 | G44: 8.4 | I44: 114.45
B45: сметана 20% | D45: 10 | E45: 10 | F45: 0.28 | G45: 2 | H45: 0.64 | I45: 20.6 | J45: 0.03
B46: соль поваренная йодиров. | D46: 1.5 | E46: 1.5
B47: масло сливочное | D47: 3 | E47: 3 | F47: 0.024 | G47: 2.18 | H47: 1.078 | I47: 19.83
F48: =SUM(F40:F47) -> 18.524 | G48: =SUM(G40:G47) -> 17.8 | H48: =SUM(H40:H47) -> 14.508 | I48: =SUM(I40:I47) -> 209.22 | J48: =J41+J42+J43+J44+J45+J46 -> 2.02
B49: компот из св фрукты | C49: 200
B50: яблоки | D50: 25 | E50: 22 | F50: 0.1 | G50: 0.088 | H50: 1.98 | I50: 9.9 | J50: 36.3
B51: сахар | D51: 12 | E51: 12 | H51: 11.98 | I51: 45.48
F52: =SUM(F50:F51) -> 0.1 | G52: =SUM(G50:G51) -> 0.088 | H52: =SUM(H50:H51) -> 13.96 | I52: =SUM(I50:I51) -> 55.38 | J52: =SUM(J50:J51) -> 36.3
B53: хлеб ржаной | C53: 50 | F53: 3.3 | G53: 0.6 | H53: 0.6 | I53: 90.5
F54: =F27+F38+F48+F52+F53 -> 34.437 | G54: =G27+G38+G48+G52+G53 -> 27.95 | H54: =H27+H38+H48+H52+H53 -> 53.196 | I54: =I27+I38+I48+I52+I53 -> 589.08 | J54: =J27+J38+J48+J52+J53 -> 63.15
A55: уплотненный полд | B55: рыба запеченное в омлете | C55: 70
B56: рыба минтай | D56: 80 | E56: 36.8 | F56: 12.72 | G56: 0.33 | I56: 26.5
B57: яицо | D57: 0.7 | E57: 0.7 | F57: 0.58 | G57: 0.08 | H57: 0.05 | I57: 2.62
B58: молоко пастериз.2,5% | D58: 40 | E58: 40 | F58: 0.84 | G58: 1.05 | H58: 2.82 | I58: 15.6 | J58: 0.39
B59: масло растит | D59: 3 | E59: 3 | G59: 2.99 | I59: 26.97
B60: масло сливочное | D60: 5 | E60: 5 | F60: 0.04 | G60: 3.63 | H60: 0.13 | I60: 33.05
B61: соль поваренная йодиров. | D61: 2 | E61: 2
F62: =SUM(F56:F61) -> 14.18 | G62: =SUM(G56:G61) -> 8.08 | H62: =SUM(H56:H61) -> 3 | I62: =SUM(I56:I61) -> 104.74 | J62: =SUM(J56:J61) -> 0.39
B63: картофельное пюре | C63: 100
B64: картофель с01.01 | D64: 180 | E64: 129.6 | F64: 3.6 | G64: 0.52 | H64: 23.27 | I64: 103.67 | J64: 25.92
B65: молоко | D65: 40 | E65: 40 | F65: 1.12 | G65: 1 | H65: 1.89 | I65: 20.8 | J65: 0.52
B66: масло сливочное | D66: 3 | E66: 3 | F66: 0.024 | G66: 2.18 | H66: 0.048 | I66: 19.83
B67: соль поваренная йодиров. | D67: 1 | E67: 1
F68: =SUM(F64:F67) -> 4.744 | G68: =SUM(G64:G67) -> 3.7 | H68: =SUM(H64:H67) -> 25.208 | I68: =SUM(I64:I67) -> 144.3 | J68: =SUM(J64:J67) -> 26.44
B69: хлеб пшеничный | C69: 40 | D69: 40 | E69: 40 | F69: 3.5 | G69: 8.4 | H69: 0.56 | I69: 83.6
B71: чай сл с молоком | C71: 200
B72: чай заварка | D72: 0.6 | E72: 0.6
B73: сахар | D73: 12 | E73: 12 | H73: 11.98 | I73: 45.48
B74: молоко пастериз.2,5% | D74: 100 | E74: 100 | F74: 2.82 | G74: 2.5 | H74: 9.44 | I74: 52 | J74: 1.3
F75: =SUM(F72:F74) -> 2.82 | G75: =SUM(G72:G74) -> 2.5 | H75: =SUM(H72:H74) -> 21.42 | I75: =SUM(I72:I74) -> 97.48 | J75: =SUM(J72:J74) -> 1.3
B76: печенье сахарное | C76: 40 | F76: 3.2 | G76: 4 | H76: 28 | I76: 120 | J76: 0.6
B77: Бананы | C77: 125 | D77: 84 | E77: 84 | F77: 1.7 | G77: 0.084 | H77: 21.8 | I77: 74.76 | J77: 8.4
F78: =F62+F75+F76+F77+F68 -> 26.644 | G78: =G62+G75+G76+G77+G68 -> 18.364 | H78: =H62+H75+H76+H77+H68 -> 99.428 | I78: =I62+I75+I76+I77+I68 -> 541.28 | J78: =J62+J75+J76+J77+J68 -> 37.13
B79: итого | F79: =F23+F54+F78 -> 75.021 | G79: =G23+G54+G78 -> 63.314 | H79: =H23+H54+H78 -> 172.238 | I79: =I23+I54+I78 -> 1648.71 | J79: =J23+J54+J78 -> 105.44

Sheet 2д.
A1: день 2 | B1: наименование блюд | C1: кол-во | D1: брутто | E1: нетто | F1: Б | G1: Ж | H1: У | I1: Ккал | J1: С
A2: завтрак | B2: каша манная с маслом | C2: 200/5
B3: крупа манная | D3: 20 | E3: 20 | F3: 2.1 | G3: 0.2 | H3: 0.06 | I3: 65.6
B4: молоко пастериз.2,5% | D4: 150 | E4: 150 | F4: 4.27 | G4: 3.75 | H4: 7.09 | I4: 78 | J4: 1.95
B5: сахар | D5: 5 | E5: 5 | H5: 4.99 | I5: 18.95
B6: масло сливочное | D6: 5 | E6: 5 | F6: 0.04 | G6: 3.53 | H6: 0.13 | I6: 33.05
B7: соль поваренная йодиров. | D7: 1 | E7: 1
F8: =SUM(F3:F7) -> 6.41 | G8: =SUM(G3:G7) -> 7.48 | H8: =SUM(H3:H7) -> 12.27 | I8: =SUM(I3:I7) -> 195.6 | J8: =SUM(J3:J7) -> 1.95
B9: какао с молоком | C9: 200
B10: какао порошок | D10: 2 | E10: 2 | F10: 0.48 | G10: 0.35 | H10: 0.07 | I10: 0.56
B11: сахар | D11: 12 | E11: 12 | H11: 11.98 | I11: 45.48
B12: молоко пастериз.2,5% | D12: 150 | E12: 150 | F12: 4.27 | G12: 3.75 | H12: 7.09 | I12: 78 | J12: 1.95
F13: =SUM(F10:F12) -> 4.75 | G13: =SUM(G10:G12) -> 4.1 | H13: =SUM(H10:H12) -> 19.14 | I13: =SUM(I10:I12) -> 124.04 | J13: =SUM(J11:J12) -> 1.95
B14: Булка с маслом и сыром | C14: 40/5/6
B15: хлеб пшеничный | D15: 40 | E15: 40 | F15: 3.5 | G15: 0.6 | H15: 0.58 | I15: 83.6
B16: масло сливочное | D16: 5 | E16: 5 | F16: 0.04 | G16: 3.63 | H16: 0.13 | I16: 33.09
B17: сыр | D17: 5 | E17: 5 | F17: 1.56 | G17: 1.54 | I17: 20.28 | J17: 0.16
F18: =SUM(F15:F17) -> 5.1 | G18: =SUM(G15:G17) -> 5.77 | H18: =SUM(H15:H17) -> 0.71 | I18: =SUM(I15:I17) -> 136.97 | J18: =SUM(J15:J17) -> 0.16
A20: 2 завтрак | B20: Сок натуральный | C20: 100 | D20: 100 | E20: 100 | F20: 0.58 | H20: 4.8 | I20: 64 | J20: 4
A21: обед | B21: Салат из зеленого горошка | C21: 32
B22: Зеленый горошек(консервы) | D22: 40 | E22: 26.68 | F22: 2 | G22: 0.08 | H22: 4.7 | I22: 29.2
B23: лук репчатый | D23: 5 | E23: 4.2 | F23: 0.07 | H23: 0.38 | I23: 1.72
B24: масло растит | D24: 2 | E24: 2 | G24: 1.998 | I24: 17.98
F25: =SUM(F22:F24) -> 2.07 | G25: =SUM(G22:G24) -> 2.078 | H25: =SUM(H22:H24) -> 5.08 | I25: =SUM(I22:I24) -> 48.9 | J25: =SUM(J22:J24) -> 0
B26: Борщ на мк/б | C26: 200
B27: свекла | D27: 50 | E27: 40 | F27: 0.7 | G27: 0.04 | H27: 36 | I27: 16.8 | J27: 4
B28: капуста белок.свеж. | D28: 50 | E28: 40 | F28: 0.9 | G28: 0.04 | H28: 1.84 | I28: 10.8 | J28: 18
B29: картофельс 01.01 | D29: 120 | E29: 86.4 | F29: 2.4 | G29: 0.34 | H29: 14.94 | I29: 69.12 | J29: 17.3
B30: морковь | D30: 17 | E30: 13.6 | F30: 0.2 | G30: 0.014 | H30: 0.96 | I30: 4.63 | J30: 0.68
B31: лук репчатый | D31: 12 | E31: 10 | F31: 0.17 | G31: 0.01 | H31: 0.9 | I31: 4.13 | J31: 1.01
B32: масло растит | D32: 5 | E32: 5 | G32: 4.99 | I32: 44.95
B33: масло сливочное | D33: 2 | E33: 2 | G33: 1.99 | I33: 17.98
B34: мясо | D34: 30 | E34: 22.5 | F34: 5.58 | G34: 3.6 | I34: 49.05
B35: сметана | D35: 7 | E35: 7 | F35: 0.2 | G35: 1.4 | H35: 0.45 | I35: 14.42 | J35: 0.21
B36: зелень | D36: 2 | E36: 1.6 | G36: 0.11 | I36: 0.78 | J36: 2.4
B37: томатное пюре | D37: 2 | E37: 2 | F37: 0.1 | G37: 0.38 | I37: 1.98
B38: соль поваренная йодиров. | D38: 1 | E38: 1
F39: =SUM(F27:F38) -> 10.25 | G39: =SUM(G27:G38) -> 12.914 | H39: =SUM(H27:H38) -> 55.09 | I39: =SUM(I27:I38) -> 234.64 | J39: =SUM(J27:J38) -> 43.6
B40: мясные котлеты | C40: 70 | F40: 11.92 | G40: 8.8 | H40: 11.64 | I40: 173
B41: говядина | D41: 80 | E41: 60 | F41: 14.88 | G41: 9.6 | I41: 130.8
B42: хлеб пшен. | D42: 12 | E42: 12 | F42: 1 | G42: 0.18 | H42: 0.17 | I42: 25.08
B43: молоко пастериз.2,5% | D43: 15 | E43: 15 | F43: 0.42 | G43: 0.38 | H43: 1.47 | I43: 18.3 | J43: 0.39
B44: сухари | D44: 8 | E44: 8 | F44: 0.5 | G44: 0.096 | H44: 0.096 | I44: 14.48
B45: яицо | D45: 0.1 | E45: 0.1 | F45: 0.013 | G45: 0.01 | H45: 0.0006 | I45: 0.14
B46: масло слив. | D46: 3 | E46: 3 | F46: 0.024 | G46: 2.8 | H46: 0.078 | I46: 19.83
B47: соль поваренная йодиров. | D47: 1 | E47: 1
B48: лук репчатый | D48: 12 | E48: 10 | F48: 0.17 | G48: 0.01 | H48: 0.9 | I48: 4.13 | J48: 1.01
F49: =SUM(F40:F48) -> 28.927 | G49: =SUM(G40:G48) -> 21.876 | H49: =SUM(H40:H48) -> 14.3546 | I49: =SUM(I40:I48) -> 385.76 | J49: =SUM(J40:J48) -> 1.4
B50: гречневая каша отв с маслом | C50: 150
B51: крупа гречневая | D51: 40 | E51: 40 | F51: 8.5 | G51: 1.81 | H51: 0.55 | I51: 132.7
B52: масло сливочное | D52: 2 | E52: 2 | F52: 0.16 | G52: 1.45 | H52: 0.104 | I52: 13.22
B53: соль поваренная йодиров. | D53: 1 | E53: 1
F54: =SUM(F51:F53) -> 8.66 | G54: =SUM(G51:G53) -> 3.26 | H54: =SUM(H51:H53) -> 0.654 | I54: =SUM(I51:I53) -> 145.92
B55: Томаты порционные | C55: 60 | D55: 60 | E55: 57 | F55: 1.14 | G55: 0.058 | H55: 2.5 | I55: 13.1 | J55: 14.26
B56: компот из с/фр | C56: 200
B57: фрукты сушеные | D57: 18 | E57: 15.84 | F57: 0.4 | H57: 7.07 | I57: 31.52 | J57: 0.32
B58: сахар | D58: 12 | E58: 12 | H58: 11.98 | I58: 45.48
F59: =SUM(F56:F58) -> 0.4 | G59: =SUM(G56:G58) -> 0 | H59: =SUM(H56:H58) -> 19.05 | I59: =SUM(I56:I58) -> 77 | J59: =SUM(J56:J58) -> 0.32
A60: упл полд. | B60: хлеб ржаной | C60: 50 | F60: 2.6 | G60: 0.6 | H60: 22.14 | I60: 106.6 | J60: 0.4
F61: =F25+F39+F49+F54+F59+F60 -> 52.907 | G61: =G25+G39+G49+G54+G59+G60 -> 40.728 | H61: =H25+H39+H49+H54+H59+H60 -> 116.3686 | I61: =I25+I39+I49+I54+I59+I60 -> 998.82 | J61: =J25+J39+J49+J54+J59+J60 -> 45.72
A62: 15:15:00 | B62: кефир не жирный | C62: 100 | D62: 100 | F62: 3 | G62: 0.05 | H62: 7.6 | I62: 30 | J62: 0.7
B63: сахар | D63: 2 | E63: 2 | H63: 1.99 | I63: 7.58
B64: хлеб пшеничный | C64: 20 | F64: 1.7 | G64: 0.3 | H64: 0.28 | I64: 41.8
F65: =SUM(F62:F64) -> 4.7 | G65: =SUM(G62:G64) -> 0.35 | H65: =SUM(H62:H64) -> 9.87 | I65: =SUM(I62:I64) -> 79.38 | J65: =SUM(J62:J64) -> 0.7
B66: груша | C66: 100 | E66: 90 | F66: 0.4 | G66: 0.3 | H66: 8.1 | I66: 37.8 | J66: 4.5
A67: с16 ч 15мин. | B67: пироги печеные с капустой и яицом | C67: 80
B68: мука пшеничная в/с | D68: 60 | E68: 60 | F68: 6.2 | G68: 0.66 | H68: 0.12 | I68: 200.4
B69: сахар | D69: 5 | E69: 5 | H69: 4.99 | I69: 18.95
B70: молоко пастериз.2,5% | D70: 50 | E70: 50 | F70: 1.41 | G70: 1.25 | H70: 4.72 | I70: 26.9 | J70: 0.65
B71: масло сливичное | D71: 4 | E71: 4 | F71: 0.032 | G71: 2.84 | H71: 0.2 | I71: 25.88
B72: яицо | D72: 0.7 | E72: 0.7 | F72: 0.58 | G72: 0.01 | H72: 0.05 | I72: 2.62
B73: капуста | D73: 30 | E73: 15
B74: дрожжи | D74: 1.3 | E74: 1.3
B75: сметана | D75: 5 | E75: 5 | F75: 0.14 | G75: 1 | H75: 0.32 | I75: 10.3 | J75: 0.015
B76: соль поваренная йодиров. | D76: 2 | E76: 2
B77: масло растит | D77: 2 | E77: 2 | G77: 1.99 | I77: 17.98
F78: =SUM(F68:F77) -> 8.362 | G78: =SUM(G68:G77) -> 7.75 | H78: =SUM(H68:H77) -> 10.4 | I78: =SUM(I68:I77) -> 303.03 | J78: =SUM(J68:J77) -> 0.665
B79: чай с молоком | C79: 180 | F79: 2.67 | G79: 2.34 | H79: 14.31 | I79: 89 | J79: 1.2
B80: чай-заварка | D80: 0.6 | E80: 0.6
B81: молоко иодированное 2,5% | D81: 100 | E81: 100 | F81: 2.82 | G81: 2.5 | H81: 9.44 | I81: 52 | J81: 1.3
B82: сахар | D82: 10 | E82: 10 | H82: 9.89 | I82: 37.9
F83: =SUM(F79:F82) -> 5.49 | G83: =SUM(G79:G82) -> 4.84 | H83: =SUM(H80:H82) -> 19.33 | I83: =SUM(I80:I82) -> 89.9 | J83: =SUM(J80:J82) -> 1.3
F84: =F64+F83+F78+F66+F65 -> 20.652 | G84: =G64+G83+G78+G66+G65 -> 13.54 | H84: =H64+H83+H78+H66+H65 -> 47.98 | I84: =I64+I83+I78+I66+I65 -> 551.91 | J84: =J64+J83+J78+J66+J65 -> 7.165
B85: итого | F85: =F21+F61+F84 -> 73.559 | G85: =G21+G61+G84 -> 54.268 | H85: =H21+H61+H84 -> 164.3486 | I85: =I21+I61+I84 -> 1550.73 | J85: =J21+J61+J84 -> 52.885

Sheet 3д
A1: день 3 | B1: наименование блюд | C1: кол-во | D1: брутто | E1: нетто | F1: Б | G1: Ж | H1: У | I1: Ккал | J1: С
A2: завтрак | B2: суп молочный вермишелевый | C2: 200/5
B3: макаронные изделия | D3: 20 | E3: 19.8 | F3: 2.1 | G3: 0.22 | H3: 0.4 | I3: 67.4
B4: молоко пастериз.2,5% | D4: 150 | E4: 150 | F4: 4.27 | G4: 3.75 | H4: 7.09 | I4: 78
B5: сахар песок | D5: 5 | E5: 5 | H5: 4.99 | I5: 18.95
B6: масло сливочное | D6: 5 | E6: 5 | F6: 0.04 | G6: 3.53 | H6: 0.13 | I6: 33.05
B7: соль поваренная йодиров. | D7: 1 | E7: 1
F8: =SUM(F3:F7) -> 6.41 | G8: =SUM(G3:G7) -> 7.5 | H8: =SUM(H3:H7) -> 12.61 | I8: =SUM(I3:I7) -> 197.4 | J8: =SUM(J3:J7) -> 0
B9: кофейный напиток с молоком | C9: 180
B10: кофейный напиток | D10: 3 | E10: 3 | H10: 0.084
B11: сахар | D11: 12 | E11: 12 | H11: 11.98 | I11: 45.48
B12: молоко пастериз иодированн.2,5% | D12: 150 | E12: 150 | F12: 4.27 | G12: 3.75 | H12: 7.09 | I12: 78
F13: =SUM(F10:F12) -> 4.27 | G13: =SUM(G10:G12) -> 3.75 | H13: =SUM(H10:H12) -> 19.154 | I13: =SUM(I10:I12) -> 123.48 | J13: 0
B14: Хлеб с маслом и сыром | C14: 40/5/5
B15: хлеб пшеничный | C15: 38 | D15: 38 | E15: 38 | F15: 3.5 | G15: 0.6 | H15: 0.58 | I15: 83.6
B16: масло сливочное | D16: 5 | E16: 5 | F16: 0.04 | G16: 3.63 | H16: 0.13 | I16: 33.09
B17: сыр | D17: 5 | E17: 5 | F17: 1.56 | G17: 1.54 | I17: 20.28 | J17: 0.16
F18: =SUM(F15:F17) -> 5.1 | G18: =SUM(G15:G17) -> 5.77 | H18: =SUM(H15:H17) -> 0.71 | I18: =SUM(I15:I17) -> 136.97 | J18: =SUM(J15:J17) -> 0.16
A19: 2 завтрак | B19: апельсин | D19: 100 | E19: 70 | F19: 0,9 | G19: 0.14 | H19: 5.67 | I19: 28 | J19: 42 | EF19: обед | EG19: салат свекольный с чернослив | EH19: 60 | EK19: 0.94 | EL19: 0.38 | EM19: 11.79 | EN19: 78.9 | EO19: 25.33 | EP19: 0.96 | EQ19: 0.009 | ER19: 0.02 | ES19: 5.18 | EU19: обед | EV19: салат из капусты | EW19: 60 | EZ19: 0,84 | FA19: 3.64 | FB19: 5.41 | FC19: 52.44 | FD19: 22.42 | FE19: 0.3 | FF19: 0.02 | FG19: 0.02 | FH19: 19.47
F20: =F19+F18+F13+F8 -> 16.68 | G20: =G19+G18+G13+G8 -> 17.16 | H20: =H19+H18+H13+H8 -> 38.144 | I20: =I19+I18+I13+I8 -> 485.85 | J20: =J19+J18+J13+J8 -> 42.16 | EG20: свекла | EI20: 63 | EJ20: 50
EG21: чернослив | EI21: 6 | EJ21: 6
A22: обед | B22: салат свекольный с чернослив | C22: 60 | EG22: масло растит | EI22: 3 | EJ22: 3 | EV22: суп картоф с м фрикад. | EW22: 250 | EZ22: 1,99 | FA22: 5.03 | FB22: 16.92 | FC22: 122 | FD22: 24.95 | FE22: 0.93 | FF22: 0.095 | FG22: 0.06 | FH22: 7.53
B23: свекла | D23: 110 | E23: 50.4 | F23: 0.9 | G23: 0.05 | H23: 4.54 | I23: 21.17 | J23: 5.04 | EG23: сахар | EI23: 3 | EJ23: 3 | EV23: р. | EW23: 200 | EZ23: 22,02 | FA23: 6.79 | FB23: 19.95 | FC23: 259 | FD23: 28.27 | FE23: 3.66 | FF23: 0.19 | FG23: 0.3 | FH23: 8.15
B24: чернослив | D24: 6 | E24: 5.4 | H24: 0.51 | I24: 2.33 | J24: 0.54 | EG24: суп картофельный с мясными фрикадельками | EH24: 250 | EK24: 6.64 | EL24: 5.18 | EM24: 15.44 | EN24: 139 | EO24: 25 | EP24: 1.47 | EQ24: 0.13 | ER24: 0.12 | ES24: 11.2 | EV24: компот из куряги | EW24: 200 | EZ24: 0,44 | FA24: 0.02 | FB24: 27.76 | FC24: 113 | FD24: 31.82 | FE24: 1.24 | FF24: 0.002 | FG24: 0.006 | FH24: 0.4
B25: масло растит | D25: 3 | E25: 3 | G25: 2.99 | I25: 26.97 | EG25: картофельс 01.01 | EI25: 154 | EJ25: 100 | EV25: хлеб ржаной | EW25: 50 | EZ25: 2,6 | FA25: 0.6 | FB25: 22.14 | FC25: 106.6 | FD25: 14.5 | FE25: 1 | FF25: 0.066 | FG25: 0.064 | FH25: 0
B26: сахар | D26: 3 | E26: 3 | H26: 2.99 | I26: 11.37 | EG26: морковь | EI26: 13 | EJ26: 10
F27: =SUM(F23:F26) -> 0.9 | G27: =SUM(G23:G26) -> 3.04 | H27: =SUM(H23:H26) -> 8.04 | I27: =SUM(I23:I26) -> 61.84 | J27: =SUM(J23:J26) -> 5.58 | EG27: лук репчатый | EI27: 12 | EJ27: 10 | EU27: упл. полдн. | EV27: 15:15 сок | EW27: 100 | EZ27: 0,5 | FA27: 0 | FB27: 10.1 | FC27: 42.22 | FD27: 7 | FE27: 1.4 | FF27: 0.01 | FG27: 0.01 | FH27: 2
B28: суп картофельный с мясными фрикадельками | C28: 250 | EG28: масло растит | EI28: 2.5 | EJ28: 2.5 | EV28: Пудинг из творога с яблоками | EW28: 150 | EZ28: 20,46 | FA28: 18.09 | FB28: 22.11 | FC28: 333 | FD28: 175.5 | FE28: 1.83 | FF28: 0.06 | FG28: 0.33 | FH28: 2.07
B29: картофель с 01.01 | D29: 154 | E29: 111 | F29: 3.1 | G29: 0.44 | H29: 1.44 | I29: 88.7 | J29: 22.18 | EG29: фрикадельки | EI29: 25 | EJ29: 25 | EV29: кисель | EW29: 200 | EZ29: 1,36 | FA29: 0 | FB29: 29.02 | FC29: 116.19 | FD29: 8.4 | FE29: 0.14 | FF29: 0.002 | FG29: 0.003 | FH29: 0.4
B30: морковь | D30: 14 | E30: 10 | EG30: яицо | EI30: 0.2 | EJ30: 0.2 | EV30: хлеб пшеничный | EW30: 40 | EZ30: 2,84 | FA30: 0.44 | FB30: 18.16 | FC30: 91.6 | FD30: 8 | FE30: 0.68 | FF30: 0.04 | FG30: 0.03 | FH30: 0
B31: лук репчатый | D31: 14 | E31: 10.4 | F31: 0.169 | H31: 0.73 | I31: 3.54 | J31: 0.52 | EG31: том пюре | EI31: 2 | EJ31: 2
B32: масло растит | D32: 2.5 | E32: 2.5 | F32: 2.5 | I32: 22.48 | EG32: соль | EI32: 1 | EJ32: 1 | EZ32: 68,77 | FA32: =SUM(G2:G104) -> 339.58 | FB32: =SUM(H2:H104) -> 626.9336 | FC32: =SUM(I2:I104) -> 8520.484 | FD32: =SUM(J2:J104) -> 288.95 | FE32: =SUM(K1:K12) -> 0 | FF32: =SUM(L1:L12) -> 0 | FG32: =SUM(M1:M5) -> 0 | FH32: =SUM(N1:N5) -> 0
B33: говядина | D33: 90 | E33: 35 | F33: 16.74 | G33: 10.8 | I33: 147.15 | EG33: рыбные котлеты | EH33: 70 | EK33: 10.09 | EL33: 3.26 | EM33: 6.79 | EN33: 97 | EO33: 19.9 | EP33: 0.57 | EQ33: 0.06 | ER33: 0.05 | ES33: 0.24
B34: яицо | D34: 0.2 | E34: 0.2 | F34: 0.025 | G34: 0.02 | H34: 0.0012 | I34: 0.27 | EG34: рыба филе | EI34: 70 | EJ34: 70
B35: том пюре | D35: 2 | E35: 2 | F35: 0.1 | G35: 0.38 | I35: 1.98 | EG35: хлеб пшен. | EI35: 12 | EJ35: 12
B36: соль поваренная йодиров. | D36: 1.5 | E36: 1.5 | EG36: молоко | EI36: 17 | EJ36: 17
F37: =SUM(F29:F36) -> 22.634 | G37: =SUM(G29:G36) -> 11.64 | H37: =SUM(H29:H36) -> 2.1712 | I37: =SUM(I29:I36) -> 264.12 | J37: =SUM(J29:J36) -> 22.7 | EG37: масло слив. | EI37: 3.5 | EJ37: 3.5
B38: рыбные котлеты | C38: 70
B39: рыба | D39: 110 | E39: 50.6 | F39: 17.49 | G39: 0.46 | I39: 36.43
B40: хлеб пшен. | C40: 12 | D40: 12 | E40: 12 | F40: 1 | G40: 0.18 | H40: 0.17 | I40: 25.08
B41: молоко пастериз.2,5% | D41: 17 | E41: 17 | F41: 0.48 | G41: 0.43 | H41: 0.168 | I41: 8.84 | J41: 0.22
B42: яицо | D42: 0.2 | E42: 0.17 | F42: 0.025 | G42: 0.02 | H42: 0.0012 | I42: 0.273
B43: масло слив. | D43: 3 | E43: 3 | F43: 0.024 | G43: 2.18 | H43: 0.078 | I43: 19.83
B44: соль поваренная йодиров. | D44: 1 | E44: 1
B45: лук репчатый | D45: 24 | E45: 20.16 | F45: 0.34 | H45: 1.97 | I45: 8.27 | J45: 2.02
B46: масло растит | D46: 3 | E46: 3 | G46: 2.69 | I46: 26.97
F47: =SUM(F39:F46) -> 19.359 | G47: =SUM(G39:G46) -> 5.96 | H47: =SUM(H39:H46) -> 2.3872 | I47: =SUM(I39:I46) -> 125.693 | J47: =SUM(J39:J46) -> 2.24
B48: огурцы порционные | C48: 60 | D48: 55.8 | F48: 0.48 | G48: 0.056 | H48: 2.02 | I48: 7.82 | J48: 5.58
B49: перловая каша с маслом | C49: 150
B50: крупа перловая | D50: 40 | E50: 39.6 | F50: 3.7 | G50: 0.44 | H50: 0.36 | I50: 126.72
B51: масло сливочное | D51: 3 | E51: 3 | F51: 0.024 | G51: 2.18 | H51: 0.078 | I51: 19.83
B52: соль поваренная йодиров. | D52: 1.5 | E52: 1.5
F53: =SUM(F50:F52) -> 3.724 | G53: =SUM(G50:G52) -> 2.62 | H53: =SUM(H50:H52) -> 0.438 | I53: =SUM(I50:I52) -> 146.55 | J53: =SUM(J50:J52) -> 0
B54: капуста тушеная с мясом | C54: 200
B55: капуста свежая | D55: 276 | E55: 220.8 | F55: 5 | G55: 0.22 | H55: 10.76
B56: масло растительное | D56: 5 | E56: 5 | G56: 4.99 | I56: 44.95
B57: морковь | D57: 12 | E57: 9.6 | F57: 0.2 | G57: 0.01 | H57: 0.67 | I57: 3.26 | J57: 0.48
B58: лук репчатый | D58: 18 | E58: 15.72 | H58: 1.36 | I58: 6.13 | J58: 1.51
B59: мясо из говядины | D59: 70 | E59: 50 | F59: 13.02 | G59: 8.4 | I59: 114.45
B60: сметана 20% | D60: 10 | E60: 10 | F60: 0.28 | G60: 2 | H60: 0.64 | I60: 20.6 | J60: 0.03
B61: соль поваренная йодиров. | D61: 1.5 | E61: 1.5
B62: масло сливочное | D62: 3 | E62: 3 | F62: 0.024 | G62: 2.18 | H62: 1.078 | I62: 19.83
F63: =SUM(F55:F62) -> 18.524 | G63: =SUM(G55:G62) -> 17.8 | H63: =SUM(H55:H62) -> 14.508 | I63: =SUM(I55:I62) -> 209.22 | J63: =J56+J57+J58+J59+J60+J61 -> 2.02
B64: компот из куряги | C64: 200
B65: куряга | D65: 15 | E65: 12.9 | F65: 0.1 | G65: 0.013 | H65: 1.13 | I65: 5.28 | J65: 1.29
B66: сахар | D66: 12 | E66: 12 | H66: 11.98 | I66: 45.48
F67: =SUM(F65:F66) -> 0.1 | G67: =SUM(G65:G66) -> 0.013 | H67: =SUM(H65:H66) -> 13.11 | I67: =SUM(I65:I66) -> 50.76 | J67: =SUM(J65:J66) -> 1.29
B68: хлеб пшеничный | C68: 30 | F68: 2.6 | G68: 0.45 | H68: 0.42 | I68: 62.7 | J68: 0
B69: хлеб ржаной | C69: 50 | D69: 50 | E69: 50 | F69: 3.3 | G69: 4.6 | H69: 0.6 | I69: 90.5
F70: =SUM(F68:F69) -> 5.9 | G70: =SUM(G68:G69) -> 5.05 | H70: =SUM(H68:H69) -> 1.02 | I70: =SUM(I68:I69) -> 153.2 | J70: =SUM(J68:J69) -> 0
F71: =F70+F67+F63+F53+F48+F47+F37+F27 -> 71.621 | G71: =G70+G67+G63+G53+G48+G47+G37+G27 -> 46.179 | H71: =H70+H67+H63+H53+H48+H47+H37+H27 -> 43.6944 | I71: =I70+I67+I63+I53+I48+I47+I37+I27 -> 1019.203 | J71: =J70+J67+J63+J53+J48+J47+J37+J27 -> 39.41
B72: сок яблочный | C72: 100 | D72: 100 | E72: 100 | F72: 0 | G72: 0 | H72: 9.1 | I72: 38 | J72: 2
A73: 15:15:00 | B73: печенье | C73: 30 | D73: 30 | E73: 30 | F73: 2.4 | G73: 5 | H73: 35.13 | I73: 201 | J73: 0.75
B75: пудинг из творога с рисом смет соусом | C75: 150
B76: творог полужирный | D76: 100 | E76: 100 | F76: 16.7 | G76: 9 | H76: 4 | I76: 159 | J76: 0.5
B77: крупа рис | D77: 15 | E77: 14.8 | F77: 1.1 | G77: 0.15 | H77: 0.104 | I77: 49.003
B78: сахар | D78: 8 | E78: 8 | H78: 7.98 | I78: 30.32
B79: мука | D79: 5 | E79: 5 | F79: 0.5 | G79: 0.055 | H79: 0.01 | I79: 16.7
B80: яица | D80: 0.3 | E80: 0.3 | F80: 0.03 | G80: 0.03 | H80: 0.001 | I80: 0.41
B81: масло сливочное | D81: 5 | E81: 5 | F81: 0.04 | G81: 3.63 | H81: 0.13 | I81: 33.05
B82: масло растит | D82: 3 | E82: 3 | G82: 2.99 | I82: 26.67
B83: ванилин | D83: 0.01 | E83: 0.01
B84: сметана 20% | D84: 10 | E84: 10 | F84: 0.28 | G84: 2 | H84: 0.64 | I84: 20.6
B85: соль поваренная йодиров. | D85: 1 | E85: 1
F86: =SUM(F76:F85) -> 18.65 | G86: =SUM(G76:G85) -> 17.855 | H86: =SUM(H76:H85) -> 12.865 | I86: =SUM(I76:I85) -> 335.753 | J86: =SUM(J76:J85) -> 0.5
B87: кисель из плодова ягодного конц. | C87: 200
B88: кисель | D88: 15 | E88: 15 | F88: 0.09 | H88: 20.8 | I88: 81.12
B89: сахар | D89: 10 | E89: 10 | H89: 9.98 | I89: 37.9
F90: =SUM(F88:F89) -> 0.09 | G90: =SUM(G88:G89) -> 0 | H90: =SUM(H88:H89) -> 30.78 | I90: =SUM(I88:I89) -> 119.02 | J90: 0
F91: =F90+F86+F73+F72 -> 21.14 | G91: =G90+G86+G73+G72 -> 22.855 | H91: =H90+H86+H73+H72 -> 87.875 | I91: =I90+I86+I73+I72 -> 693.773 | J91: =J90+J86+J73+J72 -> 3.25
B92: итого | F92: =F91+F71+F20 -> 109.441 | G92: =G91+G71+G20 -> 86.194 | H92: =H91+H71+H20 -> 169.7134 | I92: =I91+I71+I20 -> 2198.826 | J92: =J91+J71+J20 -> 84.82

Sheet 4д.
A1: день 4 | B1: наименование блюд | C1: кол-во | D1: брутта | E1: нетто | F1: Б | G1: Ж | H1: У | I1: Ккал | J1: С
A2: завтрак | B2: каша вязкая геркулесоваяс маслом | C2: 200
B3: крупа" геркулес." | D3: 20 | E3: 20 | F3: 2.2 | G3: 1.24 | H3: 10.28 | I3: 61
B4: молоко пастериз.2,5% | D4: 150 | E4: 150 | F4: 4.27 | G4: 3.75 | H4: 7.09 | I4: 78 | J4: 1.95
B5: сахар | D5: 5 | E5: 5 | G5: 4.99 | H5: 18.95
B6: масло сливочное | D6: 5 | E6: 5 | F6: 0.04 | G6: 3.63 | H6: 0.13 | I6: 33.05
B7: соль поваренная йодиров. | D7: 1 | E7: 1
F8: =SUM(F3:F7) -> 6.51 | G8: =SUM(G3:G7) -> 13.61 | H8: =SUM(H3:H7) -> 36.45 | I8: =SUM(I3:I7) -> 172.05 | J8: =SUM(J3:J7) -> 1.95
B9: какао с молоком | C9: 180
B10: какао порошок | D10: 2 | E10: 2 | F10: 0.97 | G10: 0.7 | H10: 1.16 | I10: 14.92
B11: сахар | D11: 12 | E11: 12 | H11: 11.98 | I11: 45.48
B12: молоко пастериз.иодирован2,5% | D12: 150 | E12: 150 | F12: 4.27 | G12: 3.75 | H12: 7.09 | I12: 78
F13: =SUM(F10:F12) -> 5.24 | G13: =SUM(G10:G12) -> 4.45 | H13: =SUM(H10:H12) -> 20.23 | I13: =SUM(I10:I12) -> 138.4 | J13: =SUM(J10:J12) -> 0
B14: Булка с маслом и сыром | C14: 40/5/6
B15: хлеб пшеничный | C15: 40 | D15: 40 | E15: 40 | F15: 3.5 | G15: 0.6 | H15: 0.58 | I15: 83.6
B16: масло сливочное | D16: 5 | E16: 5 | F16: 0.04 | G16: 3.63 | H16: 0.13 | I16: 33.09
B17: сыр | D17: 5 | E17: 5 | F17: 1.56 | G17: 1.54 | I17: 20.28 | J17: 0.16
F18: =SUM(F15:F17) -> 5.1 | G18: =SUM(G15:G17) -> 5.77 | H18: =SUM(H15:H17) -> 0.71 | I18: =SUM(I15:I17) -> 136.97 | J18: =SUM(J15:J17) -> 0.16
A19: 2 завтрак | B19: сок абрикосовый | C19: 100 | F19: 0.5 | G19: 0.1 | H19: 12.3 | I19: 49.2
F20: =F8+F13+F18+F19 -> 17.35 | G20: =G8+G13+G18+G19 -> 23.93 | H20: =H8+H13+H18+H19 -> 69.69 | I20: =I8+I13+I18+I19 -> 496.62 | J20: =J8+J13+J18+J19 -> 2.11
A21: обед | B21: салат из св огурцов | C21: 60
B22: огурцы свежие | D22: 71 | E22: 57
B23: масло растит | D23: 4 | E23: 4 | G23: 3.99 | I23: 35.96
B24: соль поваренная йодиров. | D24: 1 | E24: 1 | F24: 1
F25: =SUM(F22:F24) -> 1 | G25: =SUM(G22:G24) -> 3.99 | H25: =SUM(H22:H24) -> 0 | I25: =SUM(I22:I24) -> 35.96 | J25: =SUM(J22:J24) -> 0
B26: щи из свежей капусты на мк/б | C26: 200
B27: картофель 01.01 | D27: 120 | E27: 86.4 | F27: 2.4 | G27: 0.34 | H27: 14.94 | I27: 69.12 | J27: 17.3
B28: капуста белок | D28: 50 | E28: 40 | F28: 0.9 | G28: 0.04 | H28: 1.92 | I28: 10.8 | J28: 18
B29: лук репчатый. | D29: 10 | E29: 8 | F29: 0.14 | H29: 0.75 | I29: 3.45 | J29: 0.84
B30: морковьс 01.01 | D30: 17 | E30: 12 | F30: 0.22 | G30: 0.01 | H30: 1.14 | I30: 4.62 | J30: 0.68
B31: масло растит | D31: 3 | E31: 3 | G31: 2.99 | I31: 26.97
B32: мясо говядина | D32: 30 | E32: 22 | F32: 5.58 | G32: 3.6 | I32: 49.05
B33: гренки | C33: 20 | D33: 20 | E33: 20 | F33: 1.74 | G33: 0.3 | H33: 8.2 | I33: 41.8
B34: масло сливочное | D34: 3 | E34: 3 | F34: 0.024 | G34: 2.18 | H34: 0.078 | I34: 19.83
B35: сметана | D35: 7 | E35: 7 | F35: 0.196 | G35: 1.4 | H35: 0.22 | I35: 14.42 | J35: 0.02
B36: зелень | D36: 2 | E36: 1.6 | F36: 0.11 | I36: 0.78 | J36: 2.4
B37: соль поваренная йодиров. | D37: 1 | E37: 1
F38: =SUM(F27:F36) -> 11.31 | G38: =SUM(G27:G35) -> 10.86 | H38: =SUM(H27:H35) -> 27.248 | I38: =SUM(I27:I36) -> 240.84 | J38: =SUM(J27:J35) -> 36.84
B39: Томаты порционные | C39: 60 | D39: 60 | E39: 57 | F39: 1.14 | G39: 0.058 | H39: 2.5 | I39: 13.1 | J39: 14.26
B40: плов из говядины | C40: 200
B41: мясо говядина | D41: 80 | E41: 60 | F41: 14.88 | G41: 9.6 | I41: 130.8
B42: масло сливочное | D42: 3 | E42: 3 | F42: 0.024 | G42: 2.18 | H42: 0.078 | I42: 19.83
B43: морковь с 01.01 | D43: 16 | E43: 12.8 | F43: 0.21 | G43: 0.01 | H43: 1.076 | I43: 4.35 | J43: 0.64
B44: лук репчатый | D44: 11 | E44: 9 | F44: 0.154 | H44: 0.921 | I44: 3.79 | J44: 0.92
B45: крупа рисовая | D45: 45 | E45: 45 | F45: 3.15 | G45: 0.45 | H45: 30.99 | I45: 147
B46: масло растит | D46: 4 | E46: 4 | G46: 3.99 | H46: 35.96
B47: соль поваренная йодиров. | D47: 1 | E47: 1
F48: =SUM(F41:F47) -> 3.538 | G48: =SUM(G41:G47) -> 16.23 | H48: =SUM(H41:H47) -> 69.025 | I48: =SUM(I41:I47) -> 305.77 | J48: =SUM(J41:J47) -> 1.56
B49: компот из св яблок | C49: 200
B50: яблоки | D50: 30 | E50: 25
B51: сахар | D51: 12 | E51: 12 | H51: 11.98 | I51: 45.48
B53: хлеб пшеничный | C53: 20 | F53: 1.7 | G53: 0.3 | H53: 0.28 | I53: 41.8
B54: хлеб ржаной | C54: 50 | F54: 3.3 | G54: 0.6 | H54: 0.6 | I54: 90.5
F55: =SUM(F53:F54) -> 5 | G55: =SUM(G53:G54) -> 0.9 | H55: =SUM(H53:H54) -> 0.88 | I55: =SUM(I53:I54) -> 132.3 | J55: =SUM(J53:J54) -> 0
A56: упл полд. | F56: =F54+F52+F48+F39+F38+F25 -> 20.288 | G56: =G54+G52+G48+G39+G38+G25 -> 31.738 | H56: =H54+H52+H48+H39+H38+H25 -> 99.373 | I56: =I54+I52+I48+I39+I38+I25 -> 686.17 | J56: =J54+J52+J48+J39+J38+J25 -> 52.66
A57: 15:15:00 | B57: кефир не жирный | C57: 100 | D57: 100 | F57: 3 | G57: 0.05 | H57: 7.6 | I57: 30 | J57: 0.7
B58: сахар | D58: 2 | E58: 2 | H58: 1.99 | I58: 7.58
F59: =SUM(F57:F58) -> 3 | G59: =SUM(G57:G58) -> 0.05 | H59: =SUM(H57:H58) -> 9.59 | I59: =SUM(I57:I58) -> 37.58 | J59: =SUM(J57:J58) -> 0.7
B60: пироги с курагой | C60: 80
B61: мука пшеничная | D61: 60 | E61: 60 | F61: 6.2 | G61: 0.66 | H61: 0.12 | I61: 200.4
B62: сахар | D62: 7 | E62: 7 | H62: 6.99 | I62: 26.53
B63: масло сливочное | D63: 5 | E63: 5 | F63: 0.04 | G63: 3.63 | H63: 0.13 | I63: 33.05
B64: яицо | D64: 0,2 | E64: 0.2
B65: соль | D65: 1 | E65: 1
B66: дрожжи | D66: 1,3 | E66: 1.3
B67: курага | D67: 12 | E67: 12 | F67: 0.26 | H67: 4.75 | I67: 21.01 | J67: 0.21
B68: сметана | D68: 5 | E68: 5 | F68: 0.14 | G68: 1 | H68: 0.32 | I68: 10.3 | J68: 0.015
B69: молоко пастериз.2,5% | D69: 50 | E69: 50 | F69: 1.41 | G69: 1.25 | H69: 4.72 | I69: 26 | J69: 0.65
B70: масло растит | D70: 2,5 | E70: 2.5 | G70: 1.99
F71: =SUM(F61:F70) -> 8.05 | G71: =SUM(G61:G70) -> 8.53 | H71: =SUM(H61:H70) -> 17.03 | I71: =SUM(I61:I70) -> 317.29 | J71: =SUM(J61:J70) -> 0.875
B72: чай с молоком | C72: 180
B73: чай | D73: 0.6 | E73: 0.6
B74: молоко пастериз.иодиров2,5% | D74: 100 | E74: 100 | F74: 2.76 | G74: 2.45 | H74: 9.26 | I74: 50.96 | J74: 1.25
B75: сахар | D75: 12 | E75: 12 | H75: 9.98 | I75: 37.9
F76: =SUM(F72:F75) -> 2.76 | G76: =SUM(G72:G75) -> 2.45 | H76: =SUM(H72:H75) -> 19.24 | I76: =SUM(I72:I75) -> 88.86 | J76: =SUM(J72:J75) -> 1.25
B77: Груша | C77: 120 | D77: 108 | E77: 108 | F77: 0.48 | G77: 0.32 | H77: 10.97 | I77: 45.36 | J77: 5.4
F78: =F77+F76+F71+F59 -> 14.29 | G78: =G77+G76+G71+G59 -> 11.35 | H78: =H77+H76+H71+H59 -> 56.83 | I78: =I77+I76+I71+I59 -> 489.09 | J78: =J77+J76+J71+J59 -> 8.225
F79: =F78+F56+F20 -> 51.928 | G79: =G78+G56+G20 -> 67.018 | H79: =H78+H56+H20 -> 225.893 | I79: =I78+I56+I20 -> 1671.88 | J79: =J78+J56+J20 -> 62.995

Sheet 5д
A1: день5 | B1: наименование блюд | C1: кол-во | D1: брутто | E1: нетто | F1: Б | G1: Ж | H1: У | I1: Ккал | J1: С
A2: завтрак | B2: каша дружба вязкая с маслом | C2: 200/5
B3: крупа пшено | D3: 10 | E3: 10 | F3: 1.15 | G3: 0.33 | H3: 6.58 | I3: 34.45
B4: крупа рис | D4: 10 | E4: 10 | F4: 0.7 | G4: 0.0099 | H4: 7.12 | I4: 32.67
B5: молоко | D5: 150 | E5: 150 | F5: 4.23 | G5: 3.75 | H5: 7.09 | I5: 78 | J5: 1.95
B6: сахар | D6: 5 | E6: 5 | H6: 4.99 | I6: 18.95
B7: масло сливочное | D7: 5 | E7: 5 | F7: 0.04 | G7: 3.63 | H7: 0.13 | I7: 33.05
B8: соль поваренная йодиров. | D8: 1 | E8: 1
F9: =SUM(F3:F8) -> 6.12 | G9: =SUM(G3:G8) -> 7.7199 | H9: =SUM(H3:H8) -> 25.91 | I9: =SUM(I3:I8) -> 197.12 | J9: =SUM(J3:J8) -> 1.95
B10: кофейный напиток с молоком | C10: 180
B11: кофейный напиток | D11: 3 | E11: 3
B12: сахар | D12: 12 | E12: 12 | H12: 11.98 | I12: 45.48
B13: молоко | D13: 150 | E13: 150 | F13: 4.23 | G13: 3.75 | H13: 7.09 | I13: 78 | J13: 1.95
F14: =SUM(F10:F13) -> 4.23 | G14: =SUM(G10:G13) -> 3.75 | H14: =SUM(H10:H13) -> 19.07 | I14: =SUM(I10:I13) -> 123.48 | J14: =SUM(J10:J13) -> 1.95
B15: Булка с маслом и сыром | C15: 40/5/6
B16: хлеб пшеничный | C16: 40 | D16: 40 | E16: 40 | F16: 3.5 | G16: 0.6 | H16: 0.58 | I16: 83.6
B17: масло сливочное | D17: 5 | E17: 5 | F17: 0.04 | G17: 3.63 | H17: 0.13 | I17: 33.09
B18: сыр | D18: 5 | E18: 5 | F18: 1.56 | G18: 1.54 | I18: 20.28 | J18: 0.16
F19: =SUM(F16:F18) -> 5.1 | G19: =SUM(G16:G18) -> 5.77 | H19: =SUM(H16:H18) -> 0.71 | I19: =SUM(I16:I18) -> 136.97 | J19: =SUM(J16:J18) -> 0.16
A21: 2 завтрак | B21: яблоки | C21: 100 | D21: 100 | E21: 88 | F21: 0,4 | G21: 0.35 | H21: 7.92 | I21: 39.6 | J21: 145
F22: =F9+F14+F19+F21 -> 15.85 | G22: =G9+G14+G19+G21 -> 17.5899 | H22: =H9+H14+H19+H21 -> 53.61 | I22: =I9+I14+I19+I21 -> 497.17 | J22: =J9+J14+J19+J21 -> 149.06
A23: обед | B23: салат из свежих помидор. и огурц. | C23: 60
B24: помидоры св. | D24: 31 | E24: 29.45 | F24: 0.59 | G24: 0.03 | H24: 0.92 | I24: 6.77 | J24: 7.36
B25: огурцы св. | D25: 37 | E25: 34.41 | F25: 0.26 | G25: 0.034 | H25: 0.68 | I25: 3.78 | J25: 2.41
B26: масло растительное | D26: 3 | E26: 3 | G26: 2.99 | I26: 26.97
B27: лук репчатый | D27: 12 | E27: 10 | F27: 0.17 | H27: 0.98 | I27: 4.13 | J27: 1.01
B28: соль поваренная йодиров. | D28: 1 | E28: 1
F29: =SUM(F24:F27) -> 1.02 | G29: =SUM(G24:G27) -> 3.054 | H29: =SUM(H24:H27) -> 2.58 | I29: =SUM(I24:I27) -> 41.65 | J29: =SUM(J24:J27) -> 10.78
B30: суп" крестьянский" на м/б | C30: 200
B31: капуста белокач. 01.03 | D31: 100 | E31: 96 | F31: 2.16 | G31: 0.096 | H31: 4.5 | I31: 25.92 | J31: 43.2
B32: картофель 01.03 | D32: 120.9 | E32: 86.4 | F32: 2.4 | G32: 0.34 | H32: 14.2 | I32: 69.12 | J32: 17.3
B33: крупа( перлов.пшенная.рисовая) | D33: 10 | E33: 10 | F33: 2 | G33: 0.11 | H33: 6.6 | I33: 31.68
B34: морковь с 01.01 | D34: 13 | E34: 10 | F34: 0.16 | G34: 0.009 | H34: 0.78 | I34: 3.26 | J34: 0.48
B35: лук репчатый | D35: 12 | E35: 10 | F35: 0.17 | H35: 0.98 | I35: 4.13 | J35: 1.01
B36: масло растит. | D36: 5 | E36: 5 | G36: 4.99 | J36: 44.95
B37: мясо говядина | D37: 30 | E37: 15
B38: масло слив. | D38: 3 | E38: 3 | F38: 0.024 | G38: 2.18 | H38: 0.78 | I38: 19.83
B39: соль поваренная йодиров. | D39: 1 | E39: 1
B40: сметана | D40: 5 | E40: 5
F41: =SUM(F30:F40) -> 6.914 | G41: =SUM(G30:G40) -> 7.725 | H41: =SUM(H30:H40) -> 27.84 | I41: =SUM(I30:I40) -> 153.94 | J41: =SUM(J30:J40) -> 106.94
B43: жаркое по -домашнему | C43: 200
B44: говядина | D44: 80 | E44: 60 | F44: 14.9 | G44: 9.6 | H44: 11.61 | I44: 62.7
B45: картофель 01.02 | D45: 156 | E45: 112.3 | F45: 3.12 | G45: 0.45 | H45: 19.43 | I45: 89.86 | J45: 22.5
B46: лук репчатый | D46: 15 | E46: 12.6 | F46: 0.21 | H46: 1.15 | I46: 5.17 | J46: 1.26
B47: масло растит | D47: 3 | E47: 3 | G47: 2.99 | I47: 26.97
B48: соль поваренная йодиров. | D48: 2 | E48: 2
B49: морковь с 01.01 | D49: 13 | E49: 10 | F49: 0.16 | G49: 0.009 | H49: 0.78 | I49: 3.26 | J49: 0.48
B50: масло слив. | D50: 5 | E50: 5 | F50: 0.04 | G50: 3.63 | H50: 0.13 | I50: 39.05
F51: =SUM(F43:F50) -> 18.43 | G51: =SUM(G43:G50) -> 16.679 | H51: =SUM(H43:H50) -> 33.1 | I51: =SUM(I43:I50) -> 227.01 | J51: =SUM(J43:J50) -> 24.24
B52: компот из с/фр | C52: 200
B53: фрукты сушеные | D53: 20 | E53: 20 | F53: 0.44 | H53: 8.14 | I53: 35.02
B54: сахар | D54: 12 | E54: 12 | H54: 11.97 | I54: 45.48
F55: =SUM(F53:F54) -> 0.44 | G55: =SUM(G53:G54) -> 0 | H55: =SUM(H53:H54) -> 20.11 | I55: =SUM(I53:I54) -> 80.5 | J55: =SUM(J53:J54) -> 0
B56: хлеб пшеничный | C56: 40 | D56: 40 | E56: 40 | F56: 3.5 | G56: 0.6 | H56: 0.58 | I56: 83.6
B57: хлеб ржаной | C57: 50
F58: =SUM(F52:F57) -> 4.38 | G58: =SUM(G52:G57) -> 0.6 | H58: =SUM(H52:H57) -> 40.8 | I58: =SUM(I52:I57) -> 244.6 | J58: =SUM(J52:J57) -> 0
F59: =SUM(F56:F58) -> 7.88 | G59: =SUM(G56:G58) -> 1.2 | H59: =SUM(H56:H58) -> 41.38 | I59: =SUM(I56:I58) -> 328.2 | J59: =SUM(J56:J58) -> 0
F60: =F59+F55+F51+F41+F29 -> 34.684 | G60: =G59+G55+G51+G41+G29 -> 28.658 | H60: =H59+H55+H51+H41+H29 -> 125.01 | I60: =I59+I55+I51+I41+I29 -> 831.3 | J60: =J59+J55+J51+J41+J29 -> 141.96
A61: упл полд. | B61: 15:15 сок яблочный | C61: 100 | D61: 100 | E61: 100 | F61: 0.5 | H61: 9.1 | I61: 38 | J61: 2
B62: печенье | C62: 30 | D62: 30 | E62: 30 | F62: 2.4 | G62: 3 | H62: 21 | I62: 120.6
B63: запеканка из творога | C63: 120
B64: творог | D64: 100 | E64: 100 | F64: 16.7 | G64: 9 | H64: 2 | I64: 159 | J64: 0.5
B65: мука | D65: 5 | E65: 5 | F65: 0.52 | G65: 0.05 | H65: 9.41 | I65: 16.7
B66: сахар | D66: 8 | E66: 8 | H66: 7.98 | I66: 30.32
B67: яица | D67: 0.44 | E67: 0.44
B68: масло сливочное | D68: 5 | E68: 5 | F68: 0.04 | G68: 3.63 | H68: 0.13 | I68: 39.05
B69: сметана | D69: 5 | E69: 5 | F69: 0.14 | G69: 1 | H69: 0.16 | I69: 10.3 | J69: 0.02
B70: сухари | D70: 6 | E70: 6 | F70: 0.4 | G70: 0.07 | H70: 2.7 | I70: 10.86
B71: масло растит | D71: 2 | E71: 2 | G71: 1.99 | I71: 17.98
B72: соль поваренная йодиров. | D72: 1 | E72: 1
F73: =SUM(F62:F72) -> 20.2 | G73: =SUM(G62:G72) -> 18.74 | H73: =SUM(H62:H72) -> 43.38 | I73: =SUM(I62:I72) -> 404.81 | J73: =SUM(J62:J72) -> 0.52
B74: чай с молоком с конфетами | C74: 180
B75: Молоко иодированное2,5% | D75: 100 | E75: 100 | F75: 2.82 | G75: 2.5 | H75: 4.73 | I75: 52 | J75: 1.3
B76: чай заварка | D76: 0.6 | E76: 0.6
B77: конфеты | D77: 25 | E77: 25
F78: =SUM(F74:F77) -> 2.82 | G78: =SUM(G74:G77) -> 2.5 | H78: =SUM(H74:H77) -> 4.73 | I78: =SUM(I74:I77) -> 52 | J78: =SUM(J74:J77) -> 1.3
F79: =F61+F73+F78+F56 -> 27.02 | G79: =G61+G73+G78+G56 -> 21.84 | H79: =H61+H73+H78+H56 -> 57.79 | I79: =I61+I73+I78+I56 -> 578.41 | J79: =J61+J73+J78+J56 -> 3.82
B80: Итого: | F80: =F22+F60+F79 -> 77.554 | G80: =G22+G60+G79 -> 68.0879 | H80: =H22+H60+H79 -> 236.41 | I80: =I22+I60+I79 -> 1906.88 | J80: =J22+J60+J79 -> 294.84

Sheet 6д.
A1: день 6 | B1: наименование блюд | C1: кол-во | D1: брутто | E1: нетто | F1: Б | G1: Ж | H1: У | I1: Ккал | J1: С
B2: яйцо вар. | D2: 1 шт | E2: 40 | F2: 5.08 | G2: 4 | H2: 0.24 | I2: 54.64
A3: завтрак | B3: каша вязкая пшеничная с маслом | C3: 200/5
B4: крупа пшеничная | D4: 20 | E4: 20
B5: молоко | D5: 150 | E5: 150 | F5: 4.23 | G5: 3.75 | H5: 7.09 | I5: 78
B6: сахар | D6: 5 | E6: 5 | H6: 4.99 | I6: 18.95
B7: масло сливочное | D7: 5 | E7: 5 | F7: 0.04 | G7: 3.63 | H7: 0.13 | I7: 33.05
B8: соль поваренная йодиров. | D8: 1 | E8: 1
F9: =SUM(F2:F8) -> 9.35 | G9: =SUM(G2:G8) -> 11.38 | H9: =SUM(H2:H8) -> 12.45 | I9: =SUM(I2:I8) -> 184.64 | J9: =SUM(J2:J8) -> 0
B10: какао с молоком | C10: 180
B11: какао порошок | D11: 2 | E11: 2
B12: сахар | D12: 12 | E12: 12 | H12: 11.97 | I12: 45.48
B13: молоко пастериз.2,5% | D13: 150 | E13: 150 | F13: 4,23 | G13: 3.75 | H13: 7.09 | I13: 78
F14: 4.23 | G14: =SUM(G10:G13) -> 3.75 | H14: =SUM(H10:H13) -> 19.06 | I14: =SUM(I10:I13) -> 123.48 | J14: =SUM(J10:J13) -> 0
B15: Бутерброд с маслом и сыром | C15: 40/5/6
B16: хлеб пшеничный | C16: 40 | D16: 40 | E16: 40 | F16: 3.5 | G16: 0.6 | H16: 0.58 | I16: 83.6
B17: масло сливочное | D17: 5 | E17: 5 | F17: 0.04 | G17: 3.63 | H17: 0.13 | I17: 33.09
B18: сыр | D18: 5 | E18: 5 | F18: 1.56 | G18: 1.54 | I18: 20.28 | J18: 0.16
F19: =SUM(F16:F18) -> 5.1 | G19: =SUM(G16:G18) -> 5.77 | H19: =SUM(H16:H18) -> 0.71 | I19: =SUM(I16:I18) -> 136.97 | J19: =SUM(J16:J18) -> 0.16
A21: 2 завтрак | B21: апельсин | C21: 100 | D21: 100 | E21: 70 | F21: 0,9 | G21: 0.14 | H21: 5.67 | I21: 28 | J21: 42
F22: =F9+F14+F19+F21 -> 19.58 | G22: =G9+G14+G19+G21 -> 21.04 | H22: =H9+H14+H19+H21 -> 37.89 | I22: =I9+I14+I19+I21 -> 473.09 | J22: =J9+J14+J19+J21 -> 42.16
A24: обед | B24: салат из моркови с курагой | C24: 70
B25: морковь с 01.03 | D25: 90 | E25: 72 | F25: 1.17 | G25: 0.072 | H25: 5.18 | I25: 24.48 | J25: 3.6
B26: курага | D26: 14 | E26: 14 | F26: 0.73 | H26: 7.7 | I26: 3.28
B27: сахар | D27: 3 | E27: 3 | H27: 2.99 | I27: 11.37
F28: =SUM(F24:F27) -> 1.9 | G28: =SUM(G24:G27) -> 0.072 | H28: =SUM(H24:H27) -> 15.87 | I28: =SUM(I24:I27) -> 39.13 | J28: =SUM(J24:J27) -> 3.6
B29: Суп гороховый на м/к бульоне | C29: 150
B30: Горох лущенный | D30: 20 | E30: 19.9 | F30: 0.41 | G30: 0.4 | H30: 0.91 | I30: 59.3 | J30: 6.8
B31: картофель | D31: 80 | E31: 56 | F31: 2.4 | G31: 0.34 | H31: 14.94 | I31: 69.12 | J31: 11.5
B32: морковьс 01.03 | D32: 10 | E32: 7.75 | F32: 0.13 | G32: 0.008 | H32: 0.95 | I32: 2.6 | J32: 0.3
B33: лук репчатый | D33: 5 | E33: 4.2 | F33: 0.07 | H33: 0.38 | I33: 1.72 | J33: 0.42
B34: масло растит | D34: 2 | E34: 2 | G34: 1.99 | I34: 17.98 | J34: 0
B35: мясо говядины | D35: 30 | E35: 22.5 | F35: 5.58 | G35: 3.6 | I35: 49.05
B36: масло сливочное | D36: 2 | E36: 2 | F36: 0.01 | G36: 1.45 | H36: 0.052 | I36: 13.22
B37: соль йодированный | D37: 2 | E37: 2
F38: =SUM(F30:F37) -> 8.6 | G38: =SUM(G30:G37) -> 7.788 | H38: =SUM(H30:H37) -> 17.232 | I38: =SUM(I30:I37) -> 212.99 | J38: =SUM(J30:J37) -> 19.02
B39: гуляш из говядины | C39: 80
B40: мясо говядина | D40: 80 | E40: 60 | F40: 14.88 | G40: 9.6 | I40: 130.8
B41: масса отв мяса | E41: 60
B42: морковьс 01.01 | D42: 26 | E42: 21 | F42: 0.34 | G42: 0.021 | H42: 1.49 | I42: 7.07 | J42: 1.04
B43: лук репчатый | D43: 13 | E43: 11 | F43: 1.82 | H43: 0.99 | I43: 4.48 | J43: 1.09
B44: масло сливочное | D44: 3 | E44: 3 | F44: 0.024 | G44: 2.18 | H44: 0.78 | I44: 19.83
B45: мука пшеничн 1 сорт | D45: 3 | E45: 3 | F45: 0.32 | G45: 0.04 | H45: 2.03 | I45: 9.93
B46: масло растит | D46: 3 | E46: 3 | G46: 3.01 | I46: 26.97
B47: соль поваренная йодиров. | D47: 2 | E47: 2
B48: томатное пюре | D48: 6 | E48: 6 | F48: 0.29 | H48: 1.14 | I48: 5.94
F49: =SUM(F39:F48) -> 17.674 | G49: =SUM(G39:G48) -> 14.851 | H49: =SUM(H39:H48) -> 6.43 | I49: =SUM(I39:I48) -> 205.02 | J49: =SUM(J39:J48) -> 2.13
B50: макароны отварные с вар яицом | C50: 130
B51: макар изделия | D51: 45 | E51: 45 | F51: 4.68 | G51: 0.49 | H51: 31.36 | I51: 151.7
B52: масло сливочное | D52: 2 | E52: 2
F53: =SUM(F50:F52) -> 4.68 | G53: =SUM(G50:G52) -> 0.49 | H53: =SUM(H50:H52) -> 31.36 | I53: =SUM(I50:I52) -> 151.7 | J53: =SUM(J50:J52) -> 0
B54: Томаты порционные | C54: 60 | D54: 60 | E54: 57 | F54: 1.14 | G54: 0.058 | H54: 2.5 | I54: 13.1 | J54: 14.26
B55: компот из св яблок | C55: 200
B56: яблоки | D56: 30 | E56: 26.4 | F56: 0,12 | G56: 0.11 | H56: 2.58 | I56: 11.88 | J56: 43.6
B57: сахар | D57: 12 | E57: 12 | H57: 11.98 | I57: 45.48
F58: 0.12 | G58: =SUM(G55:G57) -> 0.11 | H58: =SUM(H55:H57) -> 14.56 | I58: =SUM(I55:I57) -> 57.36 | J58: =SUM(J55:J57) -> 43.6
B59: хлеб ржаной | C59: 50 | D59: 50 | E59: 50 | F59: 3.3 | G59: 0.6 | H59: 17.6 | I59: 90.5
F60: =F28+F38+F49+F53+F58+F59 -> 36.274 | G60: =G28+G38+G49+G53+G58+G59 -> 23.911 | H60: =H28+H38+H49+H53+H58+H59 -> 103.052 | I60: =I28+I38+I49+I53+I58+I59 -> 756.7 | J60: =J28+J38+J49+J53+J58+J59 -> 68.35
A61: упл полд. | B61: сок абрикосовый | C61: 100 | D61: 100 | E61: 100 | F61: 0.58 | H61: 4.8 | I61: 6.4 | J61: 4
B62: котлета картофельная | C62: 105
B63: картофель | D63: 270 | E63: 194.4 | F63: 5.4 | G63: 0.78 | H63: 31.7 | I63: 155.5 | J63: 38.9
B64: молоко | D64: 40 | E64: 40 | F64: 1.13 | G64: 1 | H64: 1.89 | I64: 20.8 | J64: 0.52
B65: масло растит | D65: 3 | E65: 3 | G65: 1.99 | I65: 17.98
B66: сметана 20 % | D66: 2 | E66: 2 | F66: 0,06 | G66: 0.4 | H66: 0.064 | I66: 4.12 | J66: 0.01
B67: соль поваренная йодиров. | D67: 1 | E67: 1
B68: масло сливочное | D68: 5 | E68: 5 | F68: 0,04 | G68: 3.63 | H68: 0.13 | I68: 33.05
F69: =SUM(F62:F68) -> 6.53 | G69: =SUM(G62:G68) -> 7.8 | H69: =SUM(H62:H68) -> 33.784 | I69: =SUM(I62:I68) -> 231.45 | J69: =SUM(J62:J68) -> 39.43
B70: хлеб пшеничный | C70: 40 | F70: 3.5 | G70: 8.4 | H70: 0.56 | I70: 83.6
B72: чай с молоком | C72: 180
B73: чай | D73: 0.6 | E73: 0.6
B74: молоко пастериз.2,5% | D74: 90 | E74: 90 | F74: 2.82 | G74: 2.5 | H74: 4.73 | I74: 52 | J74: 1.3
B75: сахар | D75: 12 | E75: 12 | H75: 11.97 | I75: 45.48
B76: печенье | C76: 40 | F76: 3.2 | G76: 4 | H76: 28 | I76: 160.8
F77: =SUM(F72:F76) -> 6.02 | G77: =SUM(G72:G76) -> 6.5 | H77: =SUM(H72:H76) -> 44.7 | I77: =SUM(I72:I76) -> 258.28 | J77: =SUM(J72:J76) -> 1.3
F78: =F61+F69+F70+F77 -> 16.63 | G78: =G61+G69+G70+G77 -> 22.7 | H78: =H61+H69+H70+H77 -> 83.844 | I78: =I61+I69+I70+I77 -> 579.73 | J78: =J61+J69+J70+J77 -> 44.73
F79: =F78+F22 -> 36.21 | G79: =G78+G22 -> 43.74 | H79: =H78+H22 -> 121.734 | I79: =I78+I22 -> 1052.82 | J79: =J78+J22 -> 86.89

Sheet 7д
A1: день7 | B1: наименование блюд | C1: кол-во | D1: брутто | E1: нетто | F1: Б | G1: Ж | H1: У | I1: Ккал | J1: С
A2: завтрак | B2: каша гречневая молочная с маслом | C2: 200/5
B3: крупа гречневая | D3: 20 | E3: 19.6 | F3: 1.9 | G3: 0.45 | H3: 13.12 | I3: 64.48
B4: молоко | D4: 150 | E4: 150 | F4: 4.23 | G4: 3.75 | H4: 7.09 | I4: 78
B5: сахар | D5: 5 | E5: 5 | H5: 4.99 | I5: 18.95
B6: масло сливочное | D6: 5 | E6: 5 | F6: 0.04 | G6: 3.63 | H6: 0.13 | I6: 33.05
B7: соль йодиров. | D7: 1 | E7: 1
F8: =SUM(F2:F7) -> 6.17 | G8: =SUM(G2:G7) -> 7.83 | H8: =SUM(H2:H7) -> 25.33 | I8: =SUM(I2:I7) -> 194.48 | J8: =SUM(J2:J7) -> 0
B9: кофейный напиток с молоком | C9: 180
B10: кофейный напиток | D10: 3 | E10: 3
B11: сахар | D11: 12 | E11: 12 | H11: 11.97 | I11: 45.48
B12: молоко | D12: 150 | E12: 150 | F12: 4.23 | G12: 3.75 | H12: 7.09 | I12: 78
F13: =SUM(F9:F12) -> 4.23 | G13: =SUM(G9:G12) -> 3.75 | H13: =SUM(H9:H12) -> 19.06 | I13: =SUM(I9:I12) -> 123.48 | J13: =SUM(J9:J12) -> 0
B14: Бутерброд с маслом и сыром | C14: 40/5/6
B15: хлеб пшеничный | C15: 40 | D15: 40 | E15: 40 | F15: 3.5 | G15: 0.6 | H15: 0.58 | I15: 83.6
B16: масло сливочное | D16: 5 | E16: 5 | F16: 0.04 | G16: 3.63 | H16: 0.13 | I16: 33.09
B17: сыр | D17: 5 | E17: 5 | F17: 1.56 | G17: 1.54 | I17: 20.28 | J17: 0.16
F18: =SUM(F15:F17) -> 5.10 | G18: =SUM(G15:G17) -> 5.77 | H18: =SUM(H15:H17) -> 0.71 | I18: =SUM(I15:I17) -> 136.97 | J18: =SUM(J15:J17) -> 0.16
A19: 2 завтрак | B19: сок абрикосовый | C19: 100
B20: сок абрикосовый | D20: 100 | E20: 100 | F20: 0.58 | H20: 4.8 | I20: 64 | J20: 4
F21: =F8+F13+F18 -> 15.5 | G21: =G8+G13+G18 -> 17.35 | H21: =H8+H13+H18 -> 45.1 | I21: =I8+I13+I18 -> 454.93 | J21: =J8+J13+J18 -> 0.16
A22: обед | B22: салат из свеклы | C22: 80
B23: свекла | D23: =+D28+D30+D31+D32+D47+D73 -> 181 | E23: 85.6 | F23: 1.6 | G23: 0.08 | H23: 8.55 | I23: 35.95 | J23: 8.56
B24: масло растит | D24: 5 | E24: 5 | G24: 4.99 | I24: 44.95
B25: сахар | D25: 2 | E25: 2 | H25: 1.99 | I25: 7.58
F26: =SUM(F22:F25) -> 1.6 | G26: =SUM(G22:G25) -> 5.07 | H26: =SUM(H22:H25) -> 10.54 | I26: =SUM(I22:I25) -> 88.48 | J26: =SUM(J22:J25) -> 8.56
B27: Рассольник "Ленинградский"на мк/б | C27: 200
B28: картофель01.01 | C28: 150 | D28: 120 | E28: 86.4 | F28: 2.4 | G28: 0.34 | H28: 14.94 | I28: 69.12 | J28: 17.3
B29: крупа перловая | D29: 10 | E29: 9.9 | F29: 2 | G29: 0.11 | H29: 6.6 | I29: 31.68
B30: морковь с01.01 | D30: 13 | E30: 9.6 | F30: 0.16 | G30: 0.009 | H30: 0.78 | I30: 3.26 | J30: 0.48
B31: лук репчатый | D31: 12 | E31: 10.8 | F31: 0.17 | H31: 0.98 | I31: 4.13 | J31: 1.01
B32: огурцы соленые | D32: 16 | E32: 16 | F32: 0.13 | G32: 0.01 | H32: 0.25 | I32: 2.08 | J32: 0.8
B33: мясо говядина | D33: 40 | E33: 30 | F33: 7.44 | G33: 4.8 | I33: 65.4
B34: соль поваренная йодиров. | D34: 2 | E34: 2
B35: масло сливочное | D35: 2 | E35: 2 | F35: 0.016 | G35: 1.45 | H35: 0.052 | I35: 13.22
B36: масло растит | D36: 2 | E36: 2 | G36: 1.99 | I36: 17.98
B37: сметана | D37: 5 | E37: 5 | F37: 0.14 | G37: 1 | H37: 0.16 | I37: 10.3 | J37: 0.015
F38: =SUM(F27:F37) -> 12.456 | G38: =SUM(G27:G37) -> 9.709 | H38: =SUM(H27:H37) -> 23.762 | I38: =SUM(I27:I37) -> 217.17 | J38: =SUM(J27:J37) -> 19.605
B39: рыбные котлеты | C39: 70
B40: рыба минтай | D40: 120 | E40: 55.2 | F40: 19.08 | G40: 0.5 | I40: 39.74
B41: хлеб пшен. | D41: 10 | E41: 10 | F41: 0.87 | G41: 0.15 | H41: 3.86 | I41: 20.9
B42: молоко пастериз.2,5% | D42: 17 | E42: 17 | F42: 0.48 | G42: 0.43 | H42: 0.8 | I42: 8.84 | J42: 0.22
B43: масло слив. | D43: 3.5 | E43: 3.5 | F43: 0.03 | G43: 2.55 | H43: 0.091 | I43: 23.27
B44: масло растит | D44: 4 | E44: 4 | G44: 3.99 | I44: 35.96
B45: яицо | D45: 0.1 | E45: 0.09 | F45: 0.013 | G45: 0.1 | H45: 0.00061 | I45: 0.14
B46: соль поваренная йодиров. | D46: 2 | E46: 2
B47: лук репчатый | D47: 12 | E47: 10.8 | F47: 0.17 | H47: 0.98 | I47: 4.13 | J47: 1.01
B48: масса полуфабриката | E48: 80
F49: =SUM(F39:F48) -> 20.643 | G49: =SUM(G39:G48) -> 7.72 | H49: =SUM(H39:H48) -> 5.73161 | I49: =SUM(I39:I48) -> 132.98 | J49: =SUM(J39:J48) -> 1.23
B50: огурцы порционные | C50: 60 | D50: 60 | E50: 55.8 | F50: 0.48 | G50: 0.056 | H50: 2.02 | I50: 7.82 | J50: 5.58
B51: гороховое пюре | C51: 130
B52: горох лушенный | D52: 50 | E52: 49.7 | F52: 11.5 | G52: 0.8 | H52: 25.82 | I52: 156.2
B53: масло сливочное | D53: 3 | E53: 3 | F53: 0.24 | G53: 2.18 | H53: 0.78 | I53: 19.83
F54: =SUM(F51:F53) -> 11.74 | G54: =SUM(G51:G53) -> 2.98 | H54: =SUM(H51:H53) -> 26.6 | I54: =SUM(I51:I53) -> 176.03 | J54: =SUM(J51:J53) -> 0
B55: компот из св яблок | C55: 200
B56: яблоки | D56: 30 | E56: 26.4 | F56: 0.12 | G56: 0.11 | H56: 2.77 | I56: 11.88 | J56: 43.56
B57: сахар | D57: 12 | E57: 12 | H57: 11.97 | I57: 45.48
F58: =SUM(F55:F57) -> 0.12 | G58: =SUM(G55:G57) -> 0.11 | H58: =SUM(H55:H57) -> 14.74 | I58: =SUM(I55:I57) -> 57.36 | J58: =SUM(J55:J57) -> 43.56
B59: хлеб пшеничный | C59: 30 | D59: 30 | E59: 30 | F59: 2.61 | G59: 0.45 | H59: 11.61 | I59: 62.7
B60: хлеб ржаной | C60: 50 | D60: 50 | E60: 50 | F60: 3.3 | G60: 0.6 | H60: 17.6 | I60: 90.45
A61: упл полдник | F61: =F26+F38+F49+F54+F58+F60+F59 -> 52.469 | G61: =G26+G38+G49+G54+G58+G60+G59 -> 26.639 | H61: =H26+H38+H49+H54+H58+H60+H59 -> 110.58361 | I61: =I26+I38+I49+I54+I58+I60+I59 -> 825.17 | J61: =J26+J38+J49+J54+J58+J60+J59 -> 72.955
B62: 15:15 кефир | C62: 100 | D62: 100 | E62: 100 | F62: 3 | G62: 0.05 | H62: 3.8 | I62: 30.1 | J62: 0.7
B63: сахар | D63: 2 | E63: 2 | H63: 1.99 | I63: 7.58
F64: =SUM(F62:F63) -> 3 | G64: =SUM(G62:G63) -> 0.05 | H64: =SUM(H62:H63) -> 5.79 | I64: =SUM(I62:I63) -> 37.68 | J64: =SUM(J62:J63) -> 0.7
B65: пироги с мясом с луком | C65: 80
B66: мука пшеничная | D66: 60 | E66: 60 | F66: 6,18 | G66: 0.66 | H66: 41.4 | I66: 200.4
B67: сахар | D67: 6 | E67: 6 | H67: 5.98 | I67: 22.74
B68: масло сливочное | D68: 3 | E68: 3 | F68: 0.024 | G68: 2.18 | H68: 0.78 | I68: 19.83
B69: яицо | D69: 0,2 | E69: 0.2 | F69: 0.025 | G69: 0.02 | H69: 0.0013 | I69: 0.27
B70: соль поваренная йодиров. | D70: 1 | E70: 1
B71: дрожжи | D71: 1,3 | E71: 1.3
B72: мясо говядины | D72: 50 | E72: 37.5 | F72: 9.3 | G72: 6 | I72: 81.75
B73: лук репчатый | D73: 8 | E73: 6.72 | F73: 0.11 | H73: 0.68 | I73: 2.75 | J73: 0.67
B74: сметана | D74: 5 | E74: 5 | F74: 0.14 | G74: 1 | H74: 0.16 | I74: 10.3 | J74: 0.015
B75: молоко | D75: 50 | E75: 50 | F75: 1.41 | G75: 1.25 | H75: 2.37 | I75: 26 | J75: 0.65
B76: масло растительное | D76: 2 | E76: 2 | G76: 1.99 | I76: 17.98
F77: =SUM(F65:F76) -> 11.009 | G77: =SUM(G65:G76) -> 13.1 | H77: =SUM(H65:H76) -> 51.3713 | I77: =SUM(I65:I76) -> 382.02 | J77: =SUM(J65:J76) -> 1.335
B78: чай с молоком | C78: 180
B79: чай | D79: 0.6 | E79: 0.6
B80: молоко | D80: 100 | E80: 100 | F80: 2.82 | G80: 2.5 | H80: 4.73 | I80: 52 | J80: 1.3
B81: сахар | D81: 12 | E81: 12 | H81: 11.97 | I81: 45.48
F82: =SUM(F78:F81) -> 2.82 | G82: =SUM(G78:G81) -> 2.5 | H82: =SUM(H78:H81) -> 16.7 | I82: =SUM(I78:I81) -> 97.48 | J82: =SUM(J78:J81) -> 1.3
B83: яблоки | C83: 90 | D83: 90 | E83: 90 | F83: 0.48 | G83: 0.42
F84: =F64+F77+F82+F59 -> 19.439 | G84: =G64+G77+G82+G59 -> 16.1 | H84: =H64+H77+H82+H59 -> 85.4713 | I84: =I64+I77+I82+I59 -> 579.88 | J84: =J64+J77+J82+J59 -> 3.335
B85: Итого: | F85: =F21+F61+F84 -> 87.408 | G85: =G21+G61+G84 -> 60.089 | H85: =H21+H61+H84 -> 241.15491 | I85: =I21+I61+I84 -> 1859.98 | J85: =J21+J61+J84 -> 76.45

Sheet 8д
A1: день8 | B1: наименование блюд | C1: кол-во | D1: брутто | E1: нетто | F1: Б | G1: Ж | H1: У | I1: Ккал | J1: С
A2: завтрак | B2: каша вязкая рисовая с маслом | C2: 200/5 | D2: 5.67 | E2: 5.28
B3: рис | D3: 20 | E3: 19.8 | F3: 1.4 | G3: 0.198 | H3: 14.22 | I3: 65.34
B4: молоко | D4: 150 | E4: 150 | F4: 4.23 | G4: 3.75 | H4: 7.09 | I4: 78
B5: сахар | D5: 5 | E5: 5 | H5: 4.99 | I5: 18.95
B6: масло сливочное | D6: 5 | E6: 5 | F6: 0.04 | G6: 3.63 | H6: 0.13 | I6: 33.05
B7: соль поваренная йодиров. | D7: 1.5 | E7: 1.5
F8: =SUM(F2:F7) -> 5.67 | G8: =SUM(G2:G7) -> 7.578 | H8: =SUM(H2:H7) -> 26.43 | I8: =SUM(I2:I7) -> 195.34 | J8: =SUM(J2:J7) -> 0
B9: чай с молоком | C9: 180
B10: чай | D10: 0.6 | E10: 0.6
B11: молоко иодированное2,5% | D11: 100 | E11: 100 | F11: 2.82 | G11: 2.5 | H11: 4.73 | I11: 52 | J11: 1.3
B12: сахар | D12: 12 | E12: 12 | H12: 11.97 | I12: 45.48
F13: =SUM(F9:F12) -> 2.82 | G13: =SUM(G9:G12) -> 2.5 | H13: =SUM(H9:H12) -> 16.7 | I13: =SUM(I9:I12) -> 97.48 | J13: =SUM(J9:J12) -> 1.3
B14: Бутерброд с маслом и сыром | C14: 40/5/6
B15: хлеб пшеничный | D15: 40 | E15: 40 | F15: 3.5 | G15: 0.6 | H15: 0.58 | I15: 83.6
B16: масло сливочное | D16: 5 | E16: 5 | F16: 0.04 | G16: 3.63 | H16: 0.13 | I16: 33.09
B17: сыр голландский | D17: 5 | E17: 5 | F17: 1.56 | G17: 1.54 | I17: 20.28 | J17: 0.16
F18: =SUM(F15:F17) -> 5.1 | G18: =SUM(G15:G17) -> 5.77 | H18: =SUM(H15:H17) -> 0.71 | I18: =SUM(I15:I17) -> 136.97 | J18: =SUM(J15:J17) -> 0.16
A19: 2 завтрак | B19: груша | D19: 66 | E19: 59.4 | F19: 0.264 | G19: 0.18 | H19: 5.99 | I19: 24.9 | J19: 2.97
F20: =F8+F13+F18+F19 -> 13.854 | G20: =G8+G13+G18+G19 -> 16.028 | H20: =H8+H13+H18+H19 -> 49.83 | I20: =I8+I13+I18+I19 -> 454.69 | J20: =J8+J13+J18+J19 -> 4.43
A21: обед | B21: салат из св помидоров | C21: 60
B22: помидоры свежие | D22: 51 | E22: 48.45 | F22: 0.96 | G22: 0.05 | H22: 1.55 | I22: 11.14 | J22: 12.1
B23: лук репчатый | D23: 13 | E23: 9.6 | F23: 0.16 | G23: 0.009 | H23: 0.78 | I23: 3.26 | J23: 0.48
B24: масло растительное | D24: 3 | E24: 3 | G24: 3.01 | I24: 26.97
B25: соль йодировнный. | D25: 1 | E25: 1
F26: =SUM(F21:F25) -> 1.12 | G26: =SUM(G21:G25) -> 3.069 | H26: =SUM(H21:H25) -> 2.33 | I26: =SUM(I21:I25) -> 41.37 | J26: =SUM(J21:J25) -> 12.58
B27: суп домашняя лапша на мк/б | C27: 200
B28: мясо говядины | D28: 30 | E28: 15
B29: яицо | D29: 0.1 | E29: 0.1 | F29: 0.013 | G29: 0.01 | H29: 0.0006 | I29: 0.137
B30: мука | D30: 25 | E30: 25
B31: картофельс 01.01 | D31: 150 | E31: 108 | F31: 3 | G31: 0.43 | H31: 18.68 | I31: 86.4 | J31: 21.6
B32: лук репчатый | D32: 12 | E32: 10 | F32: 0.17 | H32: 0.98 | I32: 4.13 | J32: 0.01
B33: морковь с 01.01 | D33: 13 | E33: 10 | F33: 0.16 | G33: 0.009 | H33: 0.78 | I33: 3.26 | J33: 0.48
B34: масло сливочное | D34: 3 | E34: 3 | F34: 0.024 | G34: 2.18 | H34: 0.78 | I34: 19.83
B35: соль йодировнное. | D35: 1 | E35: 1
B36: масло растительное | D36: 2 | E36: 2 | G36: 1.99 | I36: 17.98
F37: =SUM(F27:F36) -> 3.367 | G37: =SUM(G27:G36) -> 4.619 | H37: =SUM(H27:H36) -> 21.2206 | I37: =SUM(I27:I36) -> 131.737 | J37: =SUM(J27:J36) -> 22.09
B38: овощное рагу с мясом | C38: 200
B39: капуста белокоч | D39: 80 | E39: 64 | F39: 1.44 | G39: 0.064 | H39: 3.12 | I39: 17.28 | J39: 28.8
B40: морковь с 01.01 | D40: 40 | E40: 32 | F40: 0.52 | G40: 0.032 | H40: 2.32 | I40: 10.88 | J40: 1.6
B41: картофель с01.01 | D41: 120 | E41: 86.4 | F41: 2.4 | G41: 0.34 | H41: 14.94 | I41: 69.12 | J41: 17.3
B42: лук репчатый | D42: 15 | E42: 12.6 | F42: 0.21 | H42: 1.14 | I42: 5.17 | J42: 1.6
B43: масло растит | D43: 4 | E43: 4 | G43: 3.99 | I43: 35.96
B44: мясо говядины | D44: 70 | E44: 52.5 | F44: 13 | G44: 8.4 | I44: 114.5
B45: масло сливочное | D45: 3 | E45: 3 | F45: 0.024 | G45: 2.18 | H45: 0.78 | I45: 19.83
B46: сметана 20 % | D46: 8 | E46: 8 | F46: 0.22 | G46: 1.6 | H46: 0.26 | I46: 16.48 | J46: 0.02
B47: соль йодиров. | D47: 1.5 | E47: 1.5
F48: =SUM(F38:F47) -> 17.814 | G48: =SUM(G38:G47) -> 16.606 | H48: =SUM(H38:H47) -> 22.56 | I48: =SUM(I38:I47) -> 289.22 | J48: =SUM(J38:J47) -> 49.32
B49: компот из куряги | C49: 200
B50: куряга | D50: 15 | E50: 15 | F50: 0.78 | H50: 8.25 | I50: 35.1
B51: сахар | D51: 12 | E51: 12 | H51: 11.97 | I51: 45.48
F52: =SUM(F49:F51) -> 0.78 | G52: =SUM(G49:G51) -> 0 | H52: =SUM(H49:H51) -> 20.22 | I52: =SUM(I49:I51) -> 80.58 | J52: =SUM(J49:J51) -> 0
B53: хлеб ржаной | C53: 50 | D53: 50 | E53: 50 | F53: 3.3 | G53: 0.6 | H53: 17.6 | I53: 90.45
B54: хлеб пшеничный | D54: 30 | E54: 30 | F54: 2.61 | G54: 0.45 | H54: 12 | I54: 62.7
F55: =SUM(F53:F54) -> 5.91 | G55: =SUM(G53:G54) -> 1.05 | H55: =SUM(H53:H54) -> 29.6 | I55: =SUM(I53:I54) -> 153.15 | J55: =SUM(J53:J54) -> 0
F56: =F55+F52+F48+F37+F26 -> 28.991 | G56: =G55+G52+G48+G37+G26 -> 25.344 | H56: =H55+H52+H48+H37+H26 -> 95.9306 | I56: =I55+I52+I48+I37+I26 -> 696.057 | J56: =J55+J52+J48+J37+J26 -> 83.99
A57: упл полд | B57: 15:15 сок яблочный | C57: 100 | D57: 100 | E57: 100 | F57: 0.5 | H57: 9.1 | I57: 38 | J57: 2
B58: печенье | C58: 30 | D58: 30 | E58: 30 | F58: 2.4 | G58: 3 | H58: 21 | I58: 120.6
F59: =SUM(F57:F58) -> 2.9 | G59: =SUM(G57:G58) -> 3 | H59: =SUM(H57:H58) -> 30.1 | I59: =SUM(I57:I58) -> 158.6 | J59: =SUM(J57:J58) -> 2
B60: пудинг из творога с яблоками | C60: 130
B61: творог | D61: 100 | E61: 100 | F61: 16.7 | G61: 9 | H61: 2 | I61: 159 | J61: 0.5
B62: яблоки свежие | D62: 60 | E62: 52.8 | F62: 0.24 | G62: 0.21 | H62: 5.17 | I62: 23.26 | J62: 87.1
B63: сахар | D63: 8 | E63: 8 | H63: 7.98 | I63: 30.32
B64: яица | D64: 0.3 | E64: 0.3 | F64: 0.038 | G64: 0.03 | H64: 0.00018 | I64: 0.41
B65: масло растит | D65: 3 | E65: 3 | G65: 1.99 | I65: 17.98
B66: масло сливочное | D66: 5 | E66: 5 | F66: 0.04 | G66: 3.63 | H66: 0.13 | I66: 33.05
B67: ванилин | D67: 0.01 | E67: 0.01
B68: мука | D68: 5 | E68: 5 | F68: 0.51 | G68: 0.055 | H68: 3.44 | I68: 16.7
B69: сухари | D69: 8 | E69: 8 | F69: 0.63 | G69: 0.02 | H69: 0.0006 | I69: 0.137
B70: соль поваренная йодиров. | D70: 1 | E70: 1
B71: сметана 20 % | D71: 8 | E71: 8 | F71: 0.22 | G71: 1.6 | H71: 0.26 | I71: 16.48 | J71: 0.02
F72: =SUM(F60:F71) -> 18.378 | G72: =SUM(G60:G71) -> 16.535 | H72: =SUM(H60:H71) -> 18.98078 | I72: =SUM(I60:I71) -> 297.337 | J72: =SUM(J60:J71) -> 87.62
B73: чай с молоком | C73: 200
B74: молоко иодированное2,5% | D74: 90 | E74: 90 | F74: 2.82 | G74: 2.5 | H74: 4.73 | I74: 52 | J74: 1.3
B75: сахар | D75: 12 | E75: 12 | H75: 11.97 | I75: 45.48
B76: заварка | D76: 0.6 | E76: 0.6
F77: =SUM(F74:F76) -> 2.82 | G77: =SUM(G74:G76) -> 2.5 | H77: =SUM(H74:H76) -> 16.7 | I77: =SUM(I74:I76) -> 97.48 | J77: =SUM(J74:J76) -> 1.3
F78: =F77+F72+F59 -> 24.098 | G78: =G77+G72+G59 -> 22.035 | H78: =H77+H72+H59 -> 65.78078 | I78: =I77+I72+I59 -> 553.417 | J78: =J77+J72+J59 -> 90.92
B79: Итого: | F79: =F20+F56+F78 -> 66.943 | G79: =G20+G56+G78 -> 63.407 | H79: =H20+H56+H78 -> 211.54138 | I79: =I20+I56+I78 -> 1704.164 | J79: =J20+J56+J78 -> 179.34

Sheet 9д
A1: день 9 | B1: наименование блюд | C1: кол-во | D1: брутто | E1: нетто | F1: Б | G1: Ж | H1: У | I1: Ккал | J1: С
A2: завтрак | B2: каша вязкая ячневая с маслом | C2: 200/5
B3: крупа ячневая | D3: 20 | E3: 19.8 | F3: 2 | G3: 0.26 | H3: 13.3 | I3: 64.15
B4: молоко пастериз.2,5% | D4: 150 | E4: 150 | F4: 4.23 | G4: 3.75 | H4: 7.09 | I4: 78
B5: сахар | D5: 5 | E5: 5 | H5: 4.99 | I5: 18.95
B6: соль поваренная йодиров. | D6: 1 | E6: 1
B7: масло сливочное | D7: 5 | E7: 5 | F7: 0,04 | G7: 3.63 | H7: 0.13 | I7: 33.05
F8: =SUM(F2:F7) -> 6.23 | G8: =SUM(G2:G7) -> 7.64 | H8: =SUM(H2:H7) -> 25.51 | I8: =SUM(I2:I7) -> 194.15 | J8: =SUM(J2:J7) -> 0
B9: кофейный напиток с молоком | C9: 180
B10: кофейный напиток | D10: 3 | E10: 3
B11: сахар | D11: 12 | E11: 12 | H11: 11.97 | I11: 45.48
B12: молоко пастериз.2,5% | D12: 150 | E12: 150 | F12: 4.23 | G12: 3.75 | H12: 7.09 | I12: 78
F13: =SUM(F9:F12) -> 4.23 | G13: =SUM(G9:G12) -> 3.75 | H13: =SUM(H9:H12) -> 19.06 | I13: =SUM(I9:I12) -> 123.48 | J13: =SUM(J9:J12) -> 0
B14: Бутерброд с маслом и сыром | C14: 40/5/6
B15: хлеб пшеничный | D15: 40 | E15: 40 | F15: 3.5 | G15: 0.6 | H15: 0.58 | I15: 83.6
B16: масло сливочное | D16: 5 | E16: 5 | F16: 0.04 | G16: 3.63 | H16: 0.13 | I16: 33.09
B17: сыр | D17: 5 | E17: 5 | F17: 1.56 | G17: 1.54 | I17: 20.28 | J17: 0.16
F18: =SUM(F15:F17) -> 5.1 | G18: =SUM(G15:G17) -> 5.77 | H18: =SUM(H15:H17) -> 0.71 | I18: =SUM(I15:I17) -> 136.97 | J18: =SUM(J15:J17) -> 0.16
A19: 2 завтрак | B19: сок яблочный | C19: 100 | D19: 115 | E19: 115 | F19: 0.57 | H19: 10.47 | I19: 43.7 | J19: 2.3
F20: =F8+F13+F18+F19 -> 16.13 | G20: =G8+G13+G18+G19 -> 17.16 | H20: =H8+H13+H18+H19 -> 55.75 | I20: =I8+I13+I18+I19 -> 498.3 | J20: =J8+J13+J18+J19 -> 2.46
A21: обед | B21: салат из свеклы | C21: 60
B22: свекла с 01.01 | D22: 75 | E22: 60 | F22: 1,13 | G22: 0.06 | H22: 6.1 | I22: 25.2 | J22: 6
B23: масло растительное | D23: 4 | E23: 4 | G23: 3.99 | I23: 35.96
F24: 1,13 | G24: =SUM(G21:G23) -> 4.05 | H24: =SUM(H21:H23) -> 6.1 | I24: =SUM(I21:I23) -> 61.16 | J24: =SUM(J21:J23) -> 6
B25: суп картофельный с рыбными фрикад | C25: 200
B26: картофель с 01.01 | D26: 120 | E26: 86.4 | F26: 2,4 | G26: 0.35 | H26: 4.3 | I26: 69.12 | J26: 17.28
B27: морковь с 01.01 | D27: 20 | E27: 16 | F27: 0,26 | G27: 0.016 | H27: 1.34 | I27: 5.44 | J27: 0.8
B28: лук репчатый | D28: 10 | E28: 8 | F28: 0,14 | H28: 2.17 | I28: 3.44 | J28: 0.84
B29: крупа пшенная | D29: 10 | E29: 9.9 | F29: 1,15 | G29: 0.13 | H29: 15.26 | I29: 31.28
B30: рыба | D30: 80 | E30: 46.4 | F30: 16.8 | G30: 3.25 | I30: 68.21
B31: масло сливочное | D31: 3 | E31: 3 | F31: 0.024 | G31: 2.18 | H31: 0.78 | I31: 19.83
B32: зелень | D32: 2 | E32: 1.68 | H32: 0.035 | J32: 0.64
B33: соль поваренная йодиров. | D33: 1 | E33: 1
B34: масло растительное | D34: 3 | E34: 3 | G34: 1.99 | I34: 17.98
F35: =SUM(F25:F34) -> 16.824 | G35: =SUM(G25:G34) -> 7.916 | H35: =SUM(H25:H34) -> 23.885 | I35: =SUM(I25:I34) -> 215.3 | J35: =SUM(J25:J34) -> 19.56
B36: ленивые голубцы | C36: 200
B37: мясо говядины | D37: 80 | E37: 60 | F37: 14.88 | G37: 15.88 | H37: 16.88 | I37: 17.88 | J37: 18.88
B38: лук репчатый | D38: 16 | E38: 13 | F38: 0,22 | G38: 0,23 | H38: 0,24 | I38: 0,25 | J38: 0,26
B39: капуста | D39: 130 | E39: 58.5 | F39: 6,24 | G39: 6,25 | H39: 6,26 | I39: 6,27 | J39: 6,28
B40: рис | D40: 20 | E40: 19.8 | F40: 1.4 | G40: 1.4 | H40: 1.4 | I40: 1.4 | J40: 1.4
B41: масло сливочное | D41: 3 | E41: 3 | F41: 0.024 | G41: 0.024 | H41: 0.024 | I41: 0.024 | J41: 0.024
B42: сметана | D42: 5 | E42: 5 | F42: 0.14 | G42: 0.14 | H42: 0.14 | I42: 0.14 | J42: 0.14
B43: соль поваренная йодиров. | D43: 1 | E43: 1
F44: =SUM(F37:F43) -> 16.444 | G44: =SUM(G37:G43) -> 17.444 | H44: =SUM(H37:H43) -> 18.444 | I44: =SUM(I37:I43) -> 19.444 | J44: =SUM(J37:J43) -> 20.444
B45: компот из сухофруктов | C45: 200
B46: фрукты сушеные | D46: 20 | E46: 20 | F46: 0.44 | H46: 8.97 | I46: 35.02 | J46: 0.35
B47: сахар | D47: 12 | E47: 12 | H47: 11.97 | I47: 45.48
F48: =SUM(F45:F47) -> 0.44 | G48: =SUM(G45:G47) -> 0 | H48: =SUM(H45:H47) -> 20.94 | I48: =SUM(I45:I47) -> 80.5 | J48: =SUM(J45:J47) -> 0.35
B49: хлеб ржаной | C49: 50 | D49: 50 | E49: 50 | F49: 3.3 | G49: 0.6 | H49: 17.6 | I49: 90.95
B50: хлеб пшеничный | C50: 40 | D50: 40 | E50: 40 | F50: 3.48 | G50: 0.6 | H50: 15.48 | I50: 83.6
F51: =SUM(F49:F50) -> 6.78 | G51: =SUM(G49:G50) -> 1.2 | H51: =SUM(H49:H50) -> 33.08 | I51: =SUM(I49:I50) -> 174.55 | J51: =SUM(J49:J50) -> 0
F52: =F51+F48+F44+F35+F24 -> 41.618 | G52: =G51+G48+G44+G35+G24 -> 30.61 | H52: =H51+H48+H44+H35+H24 -> 102.449 | I52: =I51+I48+I44+I35+I24 -> 550.954 | J52: =J51+J48+J44+J35+J24 -> 46.354
A53: упл полд | B53: 15:15 кефир | C53: 100 | D53: 100 | E53: 100 | F53: 3 | G53: 0.05 | H53: 3.8 | I53: 30.1 | J53: 0.7
B54: сахар | D54: 2 | E54: 2 | H54: 1.99 | I54: 7.58
F55: =SUM(F53:F54) -> 3 | G55: =SUM(G53:G54) -> 0.05 | H55: =SUM(H53:H54) -> 5.79 | I55: =SUM(I53:I54) -> 37.68 | J55: =SUM(J53:J54) -> 0.7
B56: Булочки сдобные | C56: 80
B57: мука пшеничная | D57: 60 | E57: 60 | F57: 6.18 | G57: 0.66 | H57: 41.4 | I57: 200.4
B58: масло сливочная | D58: 5 | E58: 5 | F58: 0.04 | G58: 3.63 | H58: 0.13 | I58: 33.05
B59: сахар | D59: 8 | E59: 8 | H59: 7.98 | I59: 30.32
B60: сметана | D60: 5 | E60: 5 | F60: 0.14 | G60: 1 | H60: 0.16 | I60: 10.3 | J60: 0.015
B61: масло растит | D61: 4 | E61: 4 | G61: 3.99 | I61: 35.96
B62: яицо | D62: 0.2 | E62: 0.2 | F62: 0.025 | G62: 0.02 | H62: 0.0013 | I62: 0.27
B63: дрожжи | D63: 1.1 | E63: 1.1
B64: молоко пастериз.2,5% | D64: 50 | E64: 50 | F64: 1.41 | G64: 1.25 | H64: 4.72 | I64: 26.9 | J64: 0.65
B65: соль поваренная йодиров. | D65: 1 | E65: 1
F66: =SUM(F56:F64) -> 7.795 | G66: =SUM(G56:G64) -> 10.55 | H66: =SUM(H56:H64) -> 54.3913 | I66: =SUM(I56:I64) -> 337.2 | J66: =SUM(J56:J64) -> 0.665
B67: чай с молоком | C67: 180
B68: чай | D68: 0.6 | E68: 0.6
B69: молоко иодированное.2,5% | D69: 90 | E69: 90 | F69: 2.82 | G69: 2.5 | H69: 4.73 | I69: 52 | J69: 1.3
B70: сахар | D70: 12 | E70: 12 | H70: 11.97 | I70: 45.48
F71: =SUM(F67:F70) -> 2.82 | G71: =SUM(G67:G70) -> 2.5 | H71: =SUM(H67:H70) -> 16.7 | I71: =SUM(I67:I70) -> 97.48 | J71: =SUM(J67:J70) -> 1.3
F73: =F71+F66+F55 -> 13.615 | G73: =G71+G66+G55 -> 13.1 | H73: =H71+H66+H55 -> 76.8813 | I73: =I71+I66+I55 -> 472.36 | J73: =J71+J66+J55 -> 2.665
A74: Итого: | F74: =F73+F52+F20 -> 71.363 | G74: =G73+G52+G20 -> 60.87 | H74: =H73+H52+H20 -> 235.0803 | I74: =I73+I52+I20 -> 1521.614 | J74: =J73+J52+J20 -> 51.479

Sheet 10д
A1: день 10 | B1: наименование блюд | C1: кол-во | D1: брутто | E1: нетто | F1: Б | G1: Ж | H1: У | I1: Ккал | J1: С
A2: завтрак | B2: каша дружба вязкая с маслом | C2: 200/5
B3: крупа пшено | D3: 10 | E3: 9.9 | F3: 1.15 | G3: 0.33 | H3: 6.58 | I3: 34.45
B4: крупа рис | D4: 10 | E4: 9.9 | F4: 0.7 | G4: 0.0099 | H4: 7.12 | I4: 32.67
B5: молоко пастериз.2,5% | D5: 150 | E5: 150 | F5: 4.23 | G5: 3.75 | H5: 7.09 | I5: 78 | J5: 1.95
B6: сахар | D6: 5 | E6: 5 | H6: 4.99 | I6: 18.95
B7: масло сливочное | D7: 5 | E7: 5 | F7: 0.04 | G7: 3.63 | H7: 0.13 | I7: 33.05
B8: соль поваренная йодиров. | D8: 1 | E8: 1
F9: =SUM(F3:F8) -> 6.12 | G9: =SUM(G3:G8) -> 7.7199 | H9: =SUM(H3:H8) -> 25.91 | I9: =SUM(I3:I8) -> 197.12 | J9: =SUM(J3:J8) -> 1.95
B10: какао с молоком | C10: 200
B11: какао порошок | D11: 2 | E11: 2 | F11: 0.48 | G11: 0.35 | H11: 0.07 | I11: 0.56
B12: сахар | D12: 12 | E12: 12 | H12: 11.98 | I12: 45.48
B13: молоко пастериз.2,5% | D13: 150 | E13: 150 | F13: 4.27 | G13: 3.75 | H13: 7.09 | I13: 78 | J13: 1.95
F14: =SUM(F11:F13) -> 4.75 | G14: =SUM(G11:G13) -> 4.1 | H14: =SUM(H11:H13) -> 19.14 | I14: =SUM(I11:I13) -> 124.04 | J14: =SUM(J12:J13) -> 1.95
B15: Булка с маслом и сыром | C15: 40/5/6
B16: хлеб пшеничный | D16: 40 | E16: 40 | F16: 3.5 | G16: 0.6 | H16: 0.58 | I16: 83.6
B17: масло сливочное | D17: 5 | E17: 5 | F17: 0.04 | G17: 3.63 | H17: 0.13 | I17: 33.09
B18: сыр | D18: 5 | E18: 5 | F18: 1.56 | G18: 1.54 | I18: 20.28 | J18: 0.16
F19: =SUM(F16:F18) -> 5.1 | G19: =SUM(G16:G18) -> 5.77 | H19: =SUM(H16:H18) -> 0.71 | I19: =SUM(I16:I18) -> 136.97 | J19: =SUM(J16:J18) -> 0.16
A20: 2 завтракяблоко | B20: мандарин | C20: 100 | D20: 100 | E20: 74 | F20: 0.8 | G20: 0.22 | H20: 5.99 | I20: 28.12 | J20: 28.12
F21: =F9+F14+F19+F20 -> 16.77 | G21: =G9+G14+G19+G20 -> 17.8099 | H21: =H9+H14+H19+H20 -> 51.75 | I21: =I9+I14+I19+I20 -> 486.25 | J21: =J9+J14+J19+J20 -> 32.18
A22: обед | B22: салат из моркови с яблоками | C22: 60
B23: морковь с 01.01 | D23: 107 | E23: 48 | F23: 0.78 | G23: 0.048 | H23: 4.16 | I23: 16.32 | J23: 2.4
B24: яблоки | D24: 17 | E24: 15 | F24: 0.068 | G24: 0.059 | H24: 1.72 | I24: 6.73 | J24: 24.68
B25: сахар | D25: 2 | E25: 2 | H25: 1.99 | I25: 7.58
B26: масло растиительное. | D26: 3 | E26: 3 | H26: 2.99 | I26: 26.97
F27: =SUM(F23:F26) -> 0.848 | G27: =SUM(G23:G26) -> 0.107 | H27: =SUM(H23:H26) -> 10.86 | I27: =SUM(I23:I26) -> 57.6 | J27: =SUM(J23:J26) -> 27.08
B28: Щи из свежей капусты на м/б | C28: 200
B29: мясо говядины | D29: 30 | E29: 22.5 | F29: 5.58 | G29: 3.6 | I29: 49.05
B30: Капуста свежая | D30: 62 | E30: 49.6 | F30: 1.12 | G30: 0.5 | H30: 2.32 | I30: 13.39 | J30: 22.3
B31: картофельс 01.01 | D31: 120 | E31: 86.4 | F31: 2.4 | G31: 0.34 | H31: 14.94 | I31: 69.12 | J31: 17.3
B32: лук репчатый | D32: 14 | E32: 10 | F32: 0.17 | H32: 0.99 | I32: 4.13 | J32: 1.01
B33: морковь с 01.01 | D33: 14 | E33: 10 | F33: 0.13 | G33: 0.008 | H33: 0.8 | I33: 2.72 | J33: 0.4
B34: масло сливочное | D34: 3 | E34: 3 | F34: 0.024 | G34: 2.18 | H34: 0.78 | I34: 19.83
B35: крупа геркулес | D35: 10 | E35: 10 | F35: 1.1 | G35: 0.62 | H35: 5.13 | I35: 30.5
B36: соль йодированное. | D36: 2 | E36: 2
B37: масло растительное | D37: 2 | E37: 2 | G37: 1.99 | I37: 17.98
F38: =SUM(F31:F37) -> 3.824 | G38: =SUM(G31:G37) -> 5.138 | H38: =SUM(H31:H37) -> 22.64 | I38: =SUM(I31:I37) -> 144.28 | J38: =SUM(J31:J37) -> 18.71
B39: мясные котлеты | C39: 70
B40: говядина | D40: 80 | E40: 60 | F40: 14.88 | G40: 9.6 | I40: 130.8
B41: хлеб пшеничный. | C41: 12 | D41: 12 | E41: 12 | F41: 1.04 | G41: 0.18 | H41: 5.85 | I41: 25.08
B42: молоко иодированное2,5% | D42: 15 | E42: 15 | F42: 0.42 | G42: 0.38 | H42: 0.71 | I42: 7.8 | J42: 0.2
B43: сухари | D43: 7 | E43: 7 | F43: 0.61 | G43: 0.11 | H43: 2.79 | I43: 14.63
B44: яицо | D44: 0.1 | E44: 0.087 | F44: 0.013 | G44: 0.01 | H44: 0.00061 | I44: 0.137
B45: масса полуфабриката | E45: 87
B46: лук репчатый | D46: 14 | E46: 10 | F46: 0.17 | H46: 0.99 | I46: 4.13 | J46: 1.01
B47: соль поваренная йодиров. | D47: 1 | E47: 1
F48: =SUM(F40:F46) -> 17.133 | G48: =SUM(G40:G46) -> 10.28 | H48: =SUM(H40:H46) -> 10.34061 | I48: =SUM(I40:I46) -> 182.577 | J48: =SUM(J40:J46) -> 1.21
B49: картофельное пюре | C49: 100
B50: картофель с01.01 | D50: 180 | E50: 129.6 | F50: 3.6 | G50: 0.52 | H50: 23.27 | I50: 103.67 | J50: 25.92
B51: молоко | D51: 40 | E51: 40 | F51: 1.12 | G51: 1 | H51: 1.89 | I51: 20.8 | J51: 0.52
B52: масло сливочное | D52: 3 | E52: 3 | F52: 0.024 | G52: 2.18 | H52: 0.048 | I52: 19.83
B53: соль поваренная йодиров. | D53: 1 | E53: 1
F54: =SUM(F50:F53) -> 4.744 | G54: =SUM(G50:G53) -> 3.7 | H54: =SUM(H50:H53) -> 25.208 | I54: =SUM(I50:I53) -> 144.3 | J54: =SUM(J50:J53) -> 26.44
B55: Томаты порционные | C55: 60 | D55: 60 | E55: 57 | F55: 0.57 | G55: 0.058 | H55: 2.5 | I55: 13.1 | J55: 14.26
B56: компот из с/фр | C56: 200
B57: фрукты сушеные | D57: 20 | E57: 20 | F57: 0.44 | H57: 8.97 | I57: 35.02 | J57: 0.352
B58: сахар | D58: 12 | E58: 12 | H58: 11.97 | I58: 45.48
F59: =SUM(F56:F58) -> 0.44 | G59: =SUM(G56:G58) -> 0 | H59: =SUM(H56:H58) -> 20.94 | I59: =SUM(I56:I58) -> 80.5 | J59: =SUM(J56:J58) -> 0.352
B60: хлеб ржаной | C60: 50 | D60: 50 | E60: 50 | F60: 3.3 | G60: 0.6 | H60: 17.6 | I60: 90.5
F61: =F60+F59+F55+F54+F48+F38+F27 -> 30.859 | G61: =G60+G59+G55+G54+G48+G38+G27 -> 19.883 | H61: =H60+H59+H55+H54+H48+H38+H27 -> 110.08861 | I61: =I60+I59+I55+I54+I48+I38+I27 -> 712.857 | J61: =J60+J59+J55+J54+J48+J38+J27 -> 88.052
A62: упл полдник | B62: 15:15 сок | C62: 100 | D62: 100 | E62: 100 | F62: 0.58 | H62: 4.8 | I62: 6.4 | J62: 4
B63: коржик молочный | C63: 75 | I63: 78.3
B64: масло растительное. | E64: 0.25 | G64: 0.24 | I64: 167.6
B65: мука пшен. | D65: 40 | E65: 40 | F65: 4.12 | G65: 0.44 | H65: 27.6 | I65: 80.16
B66: сахар | D66: 21.15 | E66: 21.15 | H66: 21.1 | I66: 66.1
B67: масло сливочное | D67: 9.6 | F67: 0.08 | G67: 7.25 | H67: 0.26 | I67: 3.9
B68: яйцо | D68: 2.1 | F68: 0.26 | G68: 0.24 | H68: 0.01 | I68: 4.37
B69: молоко иодированное2,5% | D69: 11 | F69: 0.21 | G69: 0.24 | H69: 0.36 | I69: 5.9
B70: яйцо для смазки | D70: 0.9 | F70: 0.11 | G70: 0.1 | H70: 1.41
F71: =SUM(F63:F70) -> 4.78 | G71: =SUM(G63:G70) -> 8.51 | H71: =SUM(H63:H70) -> 50.74 | I71: =SUM(I63:I70) -> 406.33 | J71: =SUM(J63:J70) -> 0
B72: лакомка творожн. со сг мол см.с. | C72: 120
B73: творог полужирный | D73: 100 | E73: 100 | F73: 16.7 | G73: 9 | H73: 2 | I73: 2159 | J73: 0.5
B74: мука пшеничный. | D74: 5 | E74: 5 | F74: 0.51 | G74: 0.055 | H74: 3.44 | I74: 16.7
B75: Масло сливочн. "крест" | D75: 5 | E75: 5 | F75: 0.04 | G75: 3.63 | H75: 0.13 | I75: 33.05
B76: яицо | D76: 0,3 | E76: 0.3 | F76: 0.038 | G76: 0.03 | H76: 0.0018 | I76: 0.41
B77: сахар песок | D77: 8 | E77: 8 | H77: 7.98 | I77: 30.32
B78: сгущенное молоко | D78: 15 | E78: 15 | F78: 0.42 | G78: 0.38 | H78: 0.71 | I78: 7.8 | J78: 0.2
B79: соль поваренная йодиров. | D79: 1,5 | E79: 1.5
B80: сухари | D80: 5 | E80: 5 | F80: 0.61 | G80: 0.105 | H80: 2.79 | I80: 14.63
B81: сметана | D81: 10 | E81: 10 | F81: 0.28 | G81: 2 | H81: 0.32 | I81: 20.6 | J81: 0.03
F82: =SUM(F73:F81) -> 18.598 | G82: =SUM(G73:G81) -> 15.2 | H82: =SUM(H73:H81) -> 17.3718 | I82: =SUM(I73:I81) -> 2282.51 | J82: =SUM(J73:J81) -> 0.73
B83: хлеб пшеничный | C83: 33 | D83: 33 | E83: 33 | F83: 1.7 | G83: 0.3 | H83: 0.28 | I83: 41.8
B85: чай сл с лимоном | C85: 180
B86: чай заварка | D86: 0.6 | E86: 0.6 | I86: 45.48
B87: сахар | D87: 12 | E87: 12 | H87: 11.97 | I87: 1.39 | J87: 1.68
B88: лимон | D88: 7 | E88: 4.2 | F88: 0.063 | G88: 0.0042 | H88: 0.17
F89: =SUM(F85:F88) -> 0.063 | G89: =SUM(G85:G88) -> 0.0042 | H89: =SUM(H85:H88) -> 12.14 | I89: =SUM(I85:I88) -> 46.87 | J89: =SUM(J85:J88) -> 1.68
F90: =F89+F83+F82+F71++F62 -> 25.721 | G90: =G89+G83+G82+G71++G62 -> 24.0142 | H90: =H89+H83+H82+H71++H62 -> 85.3318 | I90: =I89+I83+I82+I71++I62 -> 2783.91 | J90: =J89+J83+J82+J71++J62 -> 6.41
B91: ИТОГО: | F91: =F90+F61+F21 -> 73.35 | G91: =G90+G61+G21 -> 61.7071 | H91: =H90+H61+H21 -> 247.17041 | I91: =I90+I61+I21 -> 3983.017 | J91: =J90+J61+J21 -> 126.642

Sheet Свод на 10 дней
A1: Накопительная ведомость по расходу продуктов питания для детей в детском саду от 3 до 7 лет с 12 часовым пребыванием ( в день на одного ребенка в граммах (нетто))
A4: Наименования | B4: 1 день | C4: 2 день | D4: 3 день | E4: 4 день | F4: 5 день | G4: 6 день | H4: 7 день | I4: 8 день | J4: 9 день | K4: 10 день | L4: Итого за 10 дней | M4: Факт за 1 день на 1-го человека в гр (нетто) | N4: Норма на 1-го человека в день в гр(нетто) | O4: Отклонения в гр.
A5: 1 | B5: 2 | C5: 3 | D5: 4 | E5: 5 | F5: 6 | G5: 7 | H5: 8 | I5: 9 | J5: 10 | K5: 11 | L5: 12 | M5: 13 | N5: 14 | O5: 15
A6: Хлеб пшеничный | B6: =B8+B7 -> 80.00 | C6: =C8+C7 -> 80.00 | D6: 80.00 | E6: 80.00 | F6: 80.00 | G6: 80.00 | H6: 80.00 | I6: 80.00 | J6: 80.00 | K6: 80.00 | L6: =SUM(B6:K6) -> 800.00 | M6: =L6/10 -> 80.00 | N6: 80.00 | O6: =M6-N6 -> 0.00
A7: хлеб пшеничный | B7: 80.00 | C7: 72.00 | D7: 68.00 | E7: 80.00 | F7: 80.00 | G7: 80.00 | H7: 70.00 | I7: 80.00 | J7: 80.00 | K7: 73.00 | L7: 763.00 | M7: =L7/10 -> 76.30
A8: сухари | B8: 0.00 | C8: 8.00 | D8: 12.00 | E8: 0.00 | F8: 0.00 | G8: 0.00 | H8: 10.00 | I8: 0.00 | J8: 0.00 | K8: 7.00 | L8: 37.00 | M8: 3.70
A9: Хлеб ржано-пшен | B9: 50.00 | C9: 50.00 | D9: 50.00 | E9: 50.00 | F9: 50.00 | G9: 50.00 | H9: 50.00 | I9: 50.00 | J9: 50.00 | K9: 50.00 | L9: 500.00 | M9: 50.00 | N9: 50.00 | O9: =M9-N9 -> 0.00
A10: Мука пшеничная | B10: 0.00 | C10: 60.00 | D10: 5.00 | E10: 60.00 | F10: 5.00 | G10: 5.00 | H10: 60.00 | I10: 30.00 | J10: 60.00 | K10: 5.00 | L10: 290.00 | M10: 29.00 | N10: 29.00 | O10: =M10-N10 -> 0.00
A11: Крупы(злаки),бобовые | B11: 20.00 | C11: 60.00 | D11: 55.00 | E11: 65.00 | F11: 30.00 | G11: 20.00 | H11: 80.00 | I11: 20.00 | J11: 50.00 | K11: 30.00 | L11: 430.00 | M11: 43.00 | N11: 43.00 | O11: =M11-N11 -> 0.00
A12: геркулес | B12: 0.00 | C12: 0.00 | D12: 0.00 | E12: 0.00 | F12: 0.00 | G12: 0.00 | H12: 0.00 | I12: 0.00 | J12: 0.00 | K12: 0.00 | L12: 0.00 | M12: 0.00 | N12: 0.00
A13: горох | B13: 0.00 | C13: 0.00 | D13: 0.00 | E13: 0.00 | F13: 0.00 | G13: 0.00 | H13: 0.00 | I13: 0.00 | J13: 0.00 | K13: 0.00 | L13: 0.00 | M13: 0.00
A14: греча | B14: 0.00 | C14: 0.00 | D14: 0.00 | E14: 0.00 | F14: 0.00 | G14: 0.00 | H14: 0.00 | I14: 0.00 | J14: 0.00 | K14: 0.00 | L14: 0.00 | M14: 0.00
A15: манная крупа | B15: 0.00 | C15: 0.00 | D15: 0.00 | E15: 0.00 | F15: 0.00 | G15: 0.00 | H15: 0.00 | I15: 0.00 | J15: 0.00 | K15: 0.00 | L15: 0.00 | M15: 0.00
A16: перловка | B16: 0.00 | C16: 0.00 | D16: 0.00 | E16: 0.00 | F16: 0.00 | G16: 0.00 | H16: 0.00 | I16: 0.00 | J16: 0.00 | K16: 0.00 | L16: 0.00 | M16: 0.00
A17: пшеничка | B17: 0.00 | C17: 0.00 | D17: 0.00 | E17: 0.00 | F17: 0.00 | G17: 0.00 | H17: 0.00 | I17: 0.00 | J17: 0.00 | K17: 0.00 | L17: 0.00 | M17: 0.00
A18: пшено | B18: 0.00 | C18: 0.00 | D18: 0.00 | E18: 0.00 | F18: 0.00 | G18: 0.00 | H18: 0.00 | I18: 0.00 | J18: 0.00 | K18: 0.00 | L18: 0.00 | M18: 0.00
A19: рис | B19: 0.00 | C19: 0.00 | D19: 0.00 | E19: 0.00 | F19: 0.00 | G19: 0.00 | H19: 0.00 | I19: 0.00 | J19: 0.00 | K19: 0.00 | L19: 0.00 | M19: 0.00
A20: фасоль | B20: 0.00 | C20: 0.00 | D20: 0.00 | E20: 0.00 | F20: 0.00 | G20: 0.00 | H20: 0.00 | I20: 0.00 | J20: 0.00 | K20: 0.00 | L20: 0.00 | M20: 0.00
A21: ячневая | B21: 0.00 | C21: 0.00 | D21: 0.00 | E21: 0.00 | F21: 0.00 | G21: 0.00 | H21: 0.00 | I21: 0.00 | J21: 0.00 | K21: 0.00 | L21: 0.00 | M21: 0.00
A22: Макаронные изделия | B22: 10.00 | C22: 0.00 | D22: 20.00 | E22: 0.00 | F22: 0.00 | G22: 45.00 | H22: 0.00 | I22: 0.00 | J22: 0.00 | K22: 45.00 | L22: 120.00 | M22: 12.00 | N22: 12.00 | O22: =M22-N22 -> 0.00
A23: Картофель | B23: 300.00 | C23: 142.00 | D23: ='3д'!D29 -> 154.00 | E23: 120.00 | F23: 276.00 | G23: ='6д.'!D31+'6д.'!D63 -> 350.00 | H23: 120.00 | I23: ='8д'!D31+'8д'!D41 -> 270.00 | J23: 120.00 | K23: ='10д'!D31+'10д'!D50 -> 300.00 | L23: 2152.00 | M23: 215.20 | N23: 215.00 | O23: =M23-N23 -> 0.20
A24: Овощи ,зелень | B24: ='1д.'!D25+'1д.'!D30+'1д.'!D31+'1д.'!D40+'1д.'!D42+'1д.'!D43+'1д.'!D36 -> 423.00 | C24: ='2д.'!D23+'2д.'!D27+'2д.'!D28+'2д.'!D30+'2д.'!D31+'2д.'!D48+'2д.'!D73+'2д.'!D36+'2д.'!D55 -> 238.00 | D24: ='3д'!D23+'3д'!D30+'3д'!D31+'3д'!D45+'3д'!D48+'3д'!D55+'3д'!D57+'3д'!D58 -> 523.80 | E24: ='4д.'!D22+'4д.'!D28+'4д.'!D29+'4д.'!D30+'4д.'!D36+'4д.'!D39+'4д.'!D43+'4д.'!D44 -> 237.00 | F24: ='5д'!D24+'5д'!D25+'5д'!D27+'5д'!D31+'5д'!D34+'5д'!D35+'5д'!D46+'5д'!D49 -> 233.00 | G24: ='6д.'!D25+'6д.'!D30+'6д.'!D32+'6д.'!D33+'6д.'!D42+'6д.'!D43+'6д.'!D54 -> 224.00 | H24: ='7д'!D23+'7д'!D30+'7д'!D31+'7д'!D32+'7д'!D47+'7д'!D50+'7д'!D73 -> 302.00 | I24: ='8д'!D23+'8д'!D32+'8д'!D33+'8д'!D39+'8д'!D40+'8д'!D42 -> 173.00 | J24: ='9д'!D22+'9д'!D27+'9д'!D28+'9д'!D38+'9д'!D39 -> 251.00 | K24: ='10д'!D23+'10д'!D24+'10д'!D30+'10д'!D31+'10д'!D32+'10д'!D33+'10д'!D46 -> 348.00 | L24: 2952.80 | M24: 295.28 | N24: 325.00 | O24: =M24-N24 -> -29.72
A25: зеленый горошек | C25: 0.00 | D25: 0.00 | E25: 0.00 | F25: 0.00 | G25: 0.00 | H25: 0.00 | I25: 0.00 | J25: 0.00 | K25: 0.00 | L25: 0.00 | M25: 0.00
A26: зелень(укроп,петрушка) | B26: 0.00 | C26: 0.00 | D26: 0.00 | E26: 0.00 | F26: 0.00 | G26: 0.00 | H26: 0.00 | I26: 0.00 | J26: 0.00 | K26: 0.00 | L26: 0.00 | M26: 0.00
A27: икра кабочковая | B27: 0.00 | C27: 0.00 | D27: 0.00 | E27: 0.00 | F27: 0.00 | G27: 0.00 | H27: 0.00 | I27: 0.00 | J27: 0.00 | K27: 0.00 | L27: 0.00 | M27: 0.00
A28: капуста квашеная | B28: 0.00 | C28: 0.00 | D28: 0.00 | E28: 0.00 | F28: 0.00 | G28: 0.00 | H28: 0.00 | I28: 0.00 | J28: 0.00 | K28: 0.00 | L28: 0.00 | M28: 0.00
A29: капуста свежая | B29: 0.00 | C29: 0.00 | D29: 0.00 | E29: 0.00 | F29: 0.00 | G29: 0.00 | H29: 0.00 | I29: 0.00 | J29: 0.00 | K29: 0.00 | L29: 0.00 | M29: 0.00
A30: лук репчатый | B30: 0.00 | C30: 0.00 | D30: 0.00 | E30: 0.00 | F30: 0.00 | G30: 0.00 | H30: 0.00 | I30: 0.00 | J30: 0.00 | K30: 0.00 | L30: 0.00 | M30: 0.00
A31: брюква | B31: 0.00 | C31: 0.00 | D31: 0.00 | E31: 0.00 | F31: 0.00 | G31: 0.00 | H31: 0.00 | I31: 0.00 | J31: 0.00 | K31: 0.00 | L31: 0.00 | M31: 0.00
A32: морковь | B32: 0.00 | C32: 0.00 | D32: 0.00 | E32: 0.00 | F32: 0.00 | G32: 0.00 | H32: 0.00 | I32: 0.00 | J32: 0.00 | K32: 0.00 | L32: 0.00 | M32: 0.00
A33: огурцы свежые | B33: 0.00 | C33: 0.00 | D33: 0.00 | E33: 0.00 | F33: 0.00 | G33: 0.00 | H33: 0.00 | I33: 0.00 | J33: 0.00 | K33: 0.00 | L33: 0.00 | M33: 0.00
A34: огурцы соленые | C34: 0.00 | D34: 0.00 | E34: 0.00 | F34: 0.00 | G34: 0.00 | H34: 0.00 | I34: 0.00 | J34: 0.00 | K34: 0.00 | L34: 0.00 | M34: 0.00
A35: капуста морская | B35: 0.00 | C35: 0.00 | D35: 0.00 | E35: 0.00 | F35: 0.00 | G35: 0.00 | H35: 0.00 | I35: 0.00 | J35: 0.00 | K35: 0.00 | L35: 0.00 | M35: 0.00
A36: помидоры свежие | B36: 0.00 | C36: 0.00 | D36: 0.00 | E36: 0.00 | F36: 0.00 | G36: 0.00 | H36: 0.00 | I36: 0.00 | J36: 0.00 | K36: 0.00 | L36: 0.00 | M36: 0.00
A37: репа | C37: 0.00 | D37: 0.00 | E37: 0.00 | F37: 0.00 | G37: 0.00 | H37: 0.00 | I37: 0.00 | J37: 0.00 | K37: 0.00 | L37: 0.00 | M37: 0.00
A38: свекла | B38: 0.00 | C38: 0.00 | D38: 0.00 | E38: 0.00 | F38: 0.00 | G38: 0.00 | H38: 0.00 | I38: 0.00 | J38: 0.00 | K38: 0.00 | L38: 0.00 | M38: 0.00
A39: томатная паста | C39: 0.00 | D39: 0.00 | E39: 0.00 | F39: 0.00 | G39: 0.00 | H39: 0.00 | I39: 0.00 | J39: 0.00 | K39: 0.00 | L39: 0.00 | M39: 0.00
A40: чеснок | B40: 0.00 | C40: 0.00 | D40: 0.00 | E40: 0.00 | F40: 0.00 | G40: 0.00 | H40: 0.00 | I40: 0.00 | J40: 0.00 | K40: 0.00 | L40: 0.00 | M40: 0.00
A41: Фрукты свежие | B41: 120.00 | C41: 100.00 | D41: 100.00 | E41: 120.00 | F41: 100.00 | G41: 130.00 | H41: 120.00 | I41: 126.00 | J41: 100.00 | K41: 124.00 | L41: 1140.00 | M41: 114.00 | N41: 114.00 | O41: =M41-N41 -> 0.00
A42: апельсин | B42: 0.00 | C42: 0.00 | D42: 0.00 | E42: 0.00 | F42: 0.00 | G42: 0.00 | H42: 0.00 | I42: 0.00 | J42: 0.00 | K42: 0.00 | L42: 0.00 | M42: 0.00
A43: бананы | B43: 0.00 | C43: 0.00 | D43: 0.00 | E43: 0.00 | F43: 0.00 | G43: 0.00 | H43: 0.00 | I43: 0.00 | J43: 0.00 | K43: 0.00 | L43: 0.00 | M43: 0.00
A44: груши | B44: 0.00 | C44: 0.00 | D44: 0.00 | E44: 0.00 | F44: 0.00 | G44: 0.00 | H44: 0.00 | I44: 0.00 | J44: 0.00 | K44: 0.00 | L44: 0.00 | M44: 0.00
A45: лимон | B45: 0.00 | C45: 0.00 | D45: 0.00 | E45: 0.00 | F45: 0.00 | G45: 0.00 | H45: 0.00 | I45: 0.00 | J45: 0.00 | K45: 0.00 | L45: 0.00 | M45: 0.00
A46: мандарины | B46: 0.00 | C46: 0.00 | D46: 0.00 | E46: 0.00 | F46: 0.00 | G46: 0.00 | H46: 0.00 | I46: 0.00 | J46: 0.00 | K46: 0.00 | L46: 0.00 | M46: 0.00
B47: 0.00 | C47: 0.00 | D47: 0.00 | E47: 0.00 | F47: 0.00 | G47: 0.00 | H47: 0.00 | I47: 0.00 | J47: 0.00 | K47: 0.00 | L47: 0.00 | M47: 0.00
A48: яблоки | B48: 0.00 | C48: 0.00 | D48: 0.00 | E48: 0.00 | F48: 0.00 | G48: 0.00 | H48: 0.00 | I48: 0.00 | J48: 0.00 | K48: 0.00 | L48: 0.00 | M48: 0.00
A49: клюква | B49: 0.00 | C49: 0.00 | D49: 0.00 | E49: 0.00 | F49: 0.00 | G49: 0.00 | H49: 0.00 | I49: 0.00 | J49: 0.00 | K49: 0.00 | L49: 0.00 | M49: 0.00
A50: брусника | B50: 0.00 | C50: 0.00 | D50: 0.00 | E50: 0.00 | F50: 0.00 | G50: 0.00 | H50: 0.00 | I50: 0.00 | J50: 0.00 | K50: 0.00 | L50: 0.00 | M50: 0.00
A51: Фрукты сухие | B51: 0.00 | C51: 18.00 | D51: 21.00 | E51: 12.00 | F51: 20.00 | G51: 4.00 | H51: 0.00 | I51: 15.00 | J51: 20.00 | K51: 0.00 | L51: 110.00 | M51: 11.00 | N51: 11.00 | O51: =M51-N51 -> 0.00
A52: изюм | B52: 0.00 | C52: 0.00 | D52: 0.00 | E52: 0.00 | F52: 0.00 | G52: 0.00 | H52: 0.00 | I52: 0.00 | J52: 0.00 | K52: 0.00 | L52: 0.00 | M52: 0.00
A53: курага | B53: 0.00 | C53: 0.00 | D53: 0.00 | E53: 0.00 | F53: 0.00 | G53: 0.00 | H53: 0.00 | I53: 0.00 | J53: 0.00 | K53: 0.00 | L53: 0.00 | M53: 0.00
A54: сухофрукты | B54: 1.80 | C54: 0.00 | D54: 0.00 | E54: 0.00 | F54: 0.00 | G54: 0.00 | H54: 0.00 | I54: 0.00 | J54: 0.00 | K54: 0.00 | L54: 1.80 | M54: 0.18
A55: чернослив | B55: 0.00 | C55: 0.00 | D55: 0.00 | E55: 0.00 | F55: 0.00 | G55: 0.00 | H55: 0.00 | I55: 0.00 | J55: 0.00 | K55: 0.00 | L55: 0.00 | M55: 0.00
A56: шиповник плоды | B56: 0.00 | C56: 0.00 | D56: 0.00 | E56: 0.00 | F56: 0.00 | G56: 0.00 | H56: 0.00 | I56: 0.00 | J56: 0.00 | K56: 0.00 | L56: 0.00 | M56: 0.00
A57: Кондитерские изделия | B57: 40.00 | C57: 0.00 | D57: 30.00 | E57: 0.00 | F57: 25.00 | G57: 40.00 | H57: 0.00 | I57: 30.00 | J57: 0.00 | K57: 35.00 | L57: 200.00 | M57: 20.00 | N57: 20.00 | O57: =M57-N57 -> 0.00
A58: вафли обогащенные | B58: 0.00 | C58: 0.00 | D58: 0.00 | E58: 0.00 | F58: 0.00 | G58: 0.00 | H58: 0.00 | I58: 0.00 | J58: 0.00 | K58: 0.00 | L58: 0.00 | M58: 0.00
A59: ванилин | B59: 0.00 | C59: 0.00 | D59: 0.00 | E59: 0.00 | F59: 0.00 | G59: 0.00 | H59: 0.00 | I59: 0.00 | J59: 0.00 | K59: 0.00 | L59: 0.00 | M59: 0.00
A60: варенье | B60: 0.00 | C60: 0.00 | D60: 0.00 | E60: 0.00 | F60: 0.00 | G60: 0.00 | H60: 0.00 | I60: 0.00 | J60: 0.00 | K60: 0.00 | L60: 0.00 | M60: 0.00
A61: конфета обогощенная | B61: 0.00 | C61: 0.00 | D61: 0.00 | E61: 0.00 | F61: 0.00 | G61: 0.00 | H61: 0.00 | I61: 0.00 | J61: 0.00 | K61: 0.00 | L61: 0.00 | M61: 0.00
A62: джем,повидло | B62: 0.00 | C62: 0.00 | D62: 0.00 | E62: 0.00 | F62: 0.00 | G62: 0.00 | H62: 0.00 | I62: 0.00 | J62: 0.00 | K62: 0.00 | L62: 0.00 | M62: 0.00
A63: зефир | B63: 0.00 | C63: 0.00 | D63: 0.00 | E63: 0.00 | F63: 0.00 | G63: 0.00 | H63: 0.00 | I63: 0.00 | J63: 0.00 | K63: 0.00 | L63: 0.00 | M63: 0.00
B64: 0.00 | C64: 0.00 | D64: 0.00 | E64: 0.00 | F64: 0.00 | G64: 0.00 | H64: 0.00 | I64: 0.00 | J64: 0.00 | K64: 0.00 | L64: 0.00 | M64: 0.00
A65: печенье обогащенное | B65: 0.00 | C65: 0.00 | D65: 0.00 | E65: 0.00 | F65: 0.00 | G65: 0.00 | H65: 0.00 | I65: 0.00 | J65: 0.00 | K65: 0.00 | L65: 0.00 | M65: 0.00
B66: 0.00 | C66: 0.00 | D66: 0.00 | E66: 0.00 | F66: 0.00 | G66: 0.00 | H66: 0.00 | I66: 0.00 | J66: 0.00 | K66: 0.00 | L66: 0.00 | M66: 0.00
A67: Сахар | B67: 44.00 | C67: 49.00 | D67: 50.00 | E67: 50.00 | F67: 37.00 | G67: 44.00 | H67: 50.00 | I67: 45.00 | J67: 51.00 | K67: 50.00 | L67: 470.00 | M67: 47.00 | N67: 47.00 | O67: =M67-N67 -> 0.00
A68: сахар | B68: 6.06 | C68: 0.00 | D68: 0.00 | E68: 0.00 | F68: 0.00 | G68: 0.00 | H68: 0.00 | I68: 0.00 | J68: 0.00 | K68: 0.00 | L68: 6.06 | M68: 0.61
A69: сахарная пудра | B69: 0.00 | C69: 0.00 | D69: 0.00 | E69: 0.00 | F69: 0.00 | G69: 0.00 | H69: 0.00 | I69: 0.00 | J69: 0.00 | K69: 0.00 | L69: 0.00 | M69: 0.00
A70: Масло сладкосливочное | B70: 21.00 | C70: 21.00 | D70: 21.00 | E70: 21.00 | F70: 21.00 | G70: 21.00 | H70: 21.00 | I70: 21.00 | J70: 21.00 | K70: 21.00 | L70: 210.00 | M70: 21.00 | N70: 21.00 | O70: =M70-N70 -> 0.00
A71: Масло растительное | B71: 10.00 | C71: 10.00 | D71: 11.50 | E71: 13.50 | F71: 13.00 | G71: 9.00 | H71: 11.00 | I71: 12.00 | J71: 11.00 | K71: 9.00 | L71: =SUM(B71:K71) -> 110.00 | M71: =L71/10 -> 11.00 | N71: 11.00 | O71: =M71-N71 -> 0.00
A72: Яйцо (шт) | B72: 0.70 | C72: 0.80 | D72: 0.50 | E72: 0.40 | F72: 0.44 | G72: 1.30 | H72: 0.30 | I72: 0.40 | J72: 0.30 | K72: 0.40 | L72: 5.54 | M72: =L72/10 -> 0.55 | N72: 0.60 | O72: =M72-N72 -> -0.0
A73: Молоко и кисломол/прод (в том числе молоко сгущенное) | B73: ='1д.'!D9+'1д.'!D14+'1д.'!D58+'1д.'!D74 -> 440.00 | C73: ='2д.'!D4+'2д.'!D12+'2д.'!D62+'2д.'!D70+'2д.'!D81 -> 550.00 | D73: ='3д'!D4+'3д'!D12+'3д'!D41 -> 317.00 | E73: ='4д.'!D4+'4д.'!D12+'4д.'!D57+'4д.'!D69+'4д.'!D74 -> 550.00 | F73: ='5д'!D5+'5д'!D13+'5д'!D75 -> 400.00 | G73: ='6д.'!D5+'6д.'!D13+'6д.'!D64+'6д.'!D74 -> 430.00 | H73: ='7д'!D4+'7д'!D12+'7д'!D42+'7д'!D62+'7д'!D75+'7д'!D80 -> 567.00 | I73: ='8д'!D4+'8д'!D11+'8д'!D74 -> 340.00 | J73: ='9д'!D4+'9д'!D12+'9д'!D53+'9д'!D64+'9д'!D69 -> 540.00 | K73: ='10д'!D5+'10д'!D13+'10д'!D42+'10д'!D51+'10д'!D69 -> 366.00 | L73: =SUM(B73:K73) -> 4500.00 | M73: =L73/10 -> 450.00 | N73: 450.00 | O73: =M73-N73 -> 0.00
A74: молоко | B74: 0.00 | C74: 0.00 | D74: 0.00 | E74: 0.00 | F74: 0.00 | G74: 0.00 | H74: 0.00 | I74: 0.00 | J74: 0.00 | K74: 0.00 | L74: 0.00 | M74: 0.00
A75: молоко сгущ | B75: 0.00 | C75: 0.00 | D75: 0.00 | E75: 0.00 | F75: 0.00 | G75: 0.00 | H75: 0.00 | I75: 0.00 | J75: 0.00 | K75: 0.00 | L75: 0.00 | M75: 0.00
A76: ацидофилин | B76: 0.00 | C76: 0.00 | D76: 0.00 | E76: 0.00 | F76: 0.00 | G76: 0.00 | H76: 0.00 | I76: 0.00 | J76: 0.00 | K76: 0.00 | L76: 0.00 | M76: 0.00
A77: бифидокефир | B77: 0.00 | C77: 0.00 | D77: 0.00 | E77: 0.00 | F77: 0.00 | G77: 0.00 | H77: 0.00 | I77: 0.00 | J77: 0.00 | K77: 0.00 | L77: 0.00 | M77: 0.00
A78: лактобактерин | B78: 0.00 | C78: 0.00 | D78: 0.00 | E78: 0.00 | F78: 0.00 | G78: 0.00 | H78: 0.00 | I78: 0.00 | J78: 0.00 | K78: 0.00 | L78: 0.00 | M78: 0.00
A79: йогурт 2,5% | C79: 0.00 | D79: 0.00 | E79: 0.00 | F79: 0.00 | G79: 0.00 | H79: 0.00 | I79: 0.00 | J79: 0.00 | K79: 0.00 | L79: 0.00 | M79: 0.00
A80: кефир с бифидофлорой | B80: 0.00 | C80: 0.00 | D80: 0.00 | E80: 0.00 | F80: 0.00 | G80: 0.00 | H80: 0.00 | I80: 0.00 | J80: 0.00 | K80: 0.00 | L80: 0.00 | M80: 0.00
A81: ряженка | B81: 0.00 | C81: 0.00 | D81: 0.00 | E81: 0.00 | F81: 0.00 | G81: 0.00 | H81: 0.00 | I81: 0.00 | J81: 0.00 | K81: 0.00 | L81: 0.00 | M81: 0.00
A82: Молоко сгущеное | B82: 0.00 | C82: 0.00 | D82: 0.00 | E82: 0.00 | F82: 0.00 | G82: 0.00 | H82: 0.00 | I82: 0.00 | J82: 0.00 | K82: 15.00 | L82: =SUM(B82:K82) -> 15.00 | M82: 1.50
A83: Творог | B83: 0.00 | C83: 0.00 | D83: 100.00 | E83: 0.00 | F83: 100.00 | G83: 0.00 | H83: 0.00 | I83: 100.00 | J83: 0.00 | K83: 100.00 | L83: 400.00 | M83: 40.00 | N83: 40.00 | O83: =M83-N83 -> 0.00
A84: Мясо | B84: 100.00 | C84: 110.00 | D84: 160.00 | E84: 110.00 | F84: 110.00 | G84: 100.00 | H84: 90.00 | I84: 100.00 | J84: 80.00 | K84: 110.00 | L84: 1070.00 | M84: 107.00 | N84: 100.00 | O84: =M84-N84 -> 7.00 | P84: 7 граммов вместо колбасных изделий
A85: говядина | B85: 0.00 | C85: 0.00 | D85: 0.00 | E85: 0.00 | F85: 0.00 | G85: 0.00 | H85: 0.00 | I85: 0.00 | J85: 0.00 | K85: 0.00 | L85: 0.00 | M85: 0.00
A86: печень говяжья | B86: 0.00 | C86: 0.00 | D86: 0.00 | E86: 0.00 | F86: 0.00 | G86: 0.00 | H86: 0.00 | I86: 0.00 | J86: 0.00 | K86: 0.00 | L86: 0.00 | M86: 0.00
A87: Птица | B87: 0.00 | C87: 0.00 | D87: 0.00 | E87: 0.00 | F87: 0.00 | G87: 0.00 | H87: 0.00 | I87: 0.00 | J87: 0.00 | K87: 0.00 | L87: 0.00 | M87: 0.00 | O87: =M87-N87 -> 0.00
A88: Колбасные изделия | B88: 0.00 | C88: 0.00 | D88: 0.00 | E88: 0.00 | F88: 0.00 | G88: 0.00 | H88: 0.00 | I88: 0.00 | J88: 0.00 | K88: 0.00 | L88: 0.00 | M88: 0.00
A89: колбаса | B89: 0.00 | C89: 0.00 | D89: 0.00 | E89: 0.00 | F89: 0.00 | G89: 0.00 | H89: 0.00 | I89: 0.00 | J89: 0.00 | K89: 0.00 | L89: 0.00 | M89: 0.00
A90: сосиски | B90: 0.00 | C90: 0.00 | D90: 0.00 | E90: 0.00 | F90: 0.00 | G90: 0.00 | H90: 0.00 | I90: 0.00 | J90: 0.00 | K90: 0.00 | L90: 0.00 | M90: 0.00
A91: сардельки | B91: 0.00 | C91: 0.00 | D91: 0.00 | E91: 0.00 | F91: 0.00 | G91: 0.00 | H91: 0.00 | I91: 0.00 | J91: 0.00 | K91: 0.00 | L91: 0.00 | M91: 0.00
A92: Рыба | B92: 80.00 | C92: 0.00 | D92: 110.00 | E92: 0.00 | F92: 0.00 | G92: 0.00 | H92: 120.00 | I92: 0.00 | J92: 80.00 | K92: 0.00 | L92: 390.00 | M92: 39.00 | N92: 39.00 | O92: =M92-N92 -> 0.00
A93: сельдь | C93: 0.00 | D93: 0.00 | E93: 0.00 | F93: 0.00 | G93: 0.00 | H93: 0.00 | I93: 0.00 | J93: 0.00 | K93: 0.00 | L93: 0.00 | M93: 0.00
A94: треска | B94: 7.00 | C94: 0.00 | D94: 0.00 | E94: 0.00 | F94: 0.00 | G94: 0.00 | H94: 0.00 | I94: 0.00 | J94: 0.00 | K94: 0.00 | L94: 7.00 | M94: 0.70
B95: 0.00 | C95: 0.00 | D95: 0.00 | E95: 0.00 | F95: 0.00 | G95: 0.00 | H95: 0.00 | I95: 0.00 | J95: 0.00 | K95: 0.00 | L95: 0.00 | M95: 0.00
A96: Сметана 15% | B96: 10.00 | C96: 12.00 | D96: 10.00 | E96: 12.00 | F96: 10.00 | G96: 10.00 | H96: 10.00 | I96: 16.00 | J96: 10.00 | K96: 10.00 | L96: 110.00 | M96: 11.00 | N96: 11.00 | O96: 0.00
A97: Сыр полутвердый в/с | B97: 6.00 | C97: 6.00 | D97: 6.00 | E97: 6.00 | F97: 6.00 | G97: 6.00 | H97: 6.00 | I97: 6.00 | J97: 6.00 | K97: 6.00 | L97: 60.00 | M97: 6.00 | N97: 6.00 | O97: 0.00
A98: Чай в/с | B98: 0.60 | C98: 0.60 | D98: 0.00 | E98: 0.60 | F98: 0.60 | G98: 0.60 | H98: 0.70 | I98: 0.70 | J98: 0.70 | K98: 0.90 | L98: 6.00 | M98: 0.60 | N98: 0.60 | O98: 0.00
A99: Кофейный напиток злаковый | B99: 3.00 | C99: 0.00 | D99: 0.00 | E99: 0.00 | F99: 3.00 | G99: 0.00 | H99: 3.00 | I99: 0.00 | J99: 3.00 | K99: 0.00 | L99: 12.00 | M99: 1.20 | N99: 1.20 | O99: 0.00
A100: Соль | B100: 6.00 | C100: 6.00 | D100: 6.00 | E100: 6.00 | F100: 6.00 | G100: 6.00 | H100: 6.00 | I100: 6.00 | J100: 6.00 | K100: 6.00 | L100: 60.00 | M100: 6.00 | N100: 6.00 | O100: 0.00
A101: Лавровый лист | B101: 0.000 | C101: 0.00 | D101: 0.00 | E101: 0.00 | F101: 0.00 | G101: 0.00 | H101: 0.00 | I101: 0.00 | J101: 0.00 | K101: 0.00 | L101: 0.00 | M101: 0.00
A102: Лимонная кислота | B102: 0.070 | C102: 0.00 | D102: 0.00 | E102: 0.00 | F102: 0.00 | G102: 0.00 | H102: 0.00 | I102: 0.00 | J102: 0.00 | K102: 0.00 | L102: 0.07 | M102: 0.01
A103: Витамин "С" | B103: 0.001 | C103: 0.00 | D103: 0.00 | E103: 0.00 | F103: 0.00 | G103: 0.00 | H103: 0.00 | I103: 0.00 | J103: 0.00 | K103: 0.00 | L103: 0.001 | M103: 0.00
A104: Дрожжи хлебопекарные | B104: 0.00 | C104: 1.30 | D104: 0.00 | E104: 1.30 | F104: 0.00 | G104: 0.00 | H104: 1.30 | I104: 0.00 | J104: 1.10 | K104: 0.00 | L104: 5.00 | M104: 0.50 | N104: 0.50 | O104: 0.00
A105: Мука картофельная | B105: 0.00 | C105: 0.00 | D105: 15.00 | E105: 0.00 | F105: 0.00 | G105: 0.00 | H105: 0.00 | I105: 15.00 | J105: 0.00 | K105: 0.00 | L105: 30.00 | M105: 3.00 | N105: 3.00 | O105: =M105-N105 -> 0.00
A106: крахмал | B106: 0.00 | C106: 0.00 | D106: 0.00 | E106: 0.00 | F106: 0.00 | G106: 0.00 | H106: 0.00 | I106: 0.00 | J106: 0.00 | K106: 0.00 | L106: 0.00 | M106: 0.00
A107: кисель обогащ | B107: 0.00 | C107: 0.00 | D107: 0.00 | E107: 0.00 | F107: 0.00 | G107: 0.00 | H107: 0.00 | I107: 0.00 | J107: 0.00 | K107: 0.00 | L107: 0.00 | M107: 0.00
A108: Какао | B108: 0.00 | C108: 2.00 | D108: 0.00 | E108: 2.00 | F108: 0.00 | H108: 0.00 | I108: 0.00 | K108: 2.00 | L108: =SUM(B108:K108) -> 6.00 | M108: 0.60 | N108: 0.60 | O108: =M108-N108 -> 0.00
A109: Соки фруктовые (овощные) | B109: 100.00 | C109: 100.00 | D109: 100.00 | E109: 100.00 | F109: 100.00 | G109: 100.00 | H109: 100.00 | I109: 100.00 | J109: 100.00 | K109: 100.00 | L109: 1000.00 | M109: 100.00 | N109: 100.00 | O109: =M109-N109 -> 0.00

Sheet Блинчики
B2: Блинчики №447
B3: Наименование блюда: Блинчики
B4: Технологическая карта (кулинарный рецепт) №447
B5: Вид обработки: Запечение
B6: Вес блюда: 100гр
B7: Рецептура (раскладка продуктов) на 100 грамм нетто блюда:
B8: Продукт (полуфабрикат) | C8: Брутто, г | D8: Нетто, г
B9: Мука пшеничная | C9: 41.6 | D9: 41.6
B10: Вода питьевая | C10: 104 | D10: 104
B11: Яйцо | C11: 8.3 | D11: 8.3
B12: Сахар | C12: 2.5 | D12: 2.5
B13: Соль | C13: 0.8 | D13: 0.8
B14: Масло растительное | C14: 2 | D14: 2
B16: Пищевая ценность, калорийность и химический состав блюда (витамины, микроэлементы):
B17: Наименование показателя, рассчитываемого в соответствии с новым СанПиН | C17: Содержание питательных веществ на 100грамм блюда
B18: Белки, г | C18: 4.67
B19: Жиры, г | C19: 2.51
B20: Углеводы, г | C20: 35.85
B21: Калорийность, ккал | C21: 185.45
B22: B1, мг | C22: 0.09
B23: B2, мг | C23: 0.05
B24: C, мг | C24: 0
B25: Ca, мг | C25: 19.64
B26: Fe, мг | C26: 1
B27: Рекомендуемый выход блюда для кормления детей за 1 прием пищи (грамм):
B28: Количество часов содержания детей в ДОУ | C28: Дети 1-3 лет (ясли) | D28: Дети 3-7 лет (детский сад)
B29: 8-10 часов | C29: 50 | D29: 100
B30: 12 часов | C30: 50 | D30: 100
B31: Технологическая карта приготовления блюда в ДОУ:
B32: Технология приготовления
B33: Яйца, соль, сахар размешивают, добавляют (50% нормы) холодную воду, всыпают муку, взбивают до получения однородной массы, добавляя оставшуюся воду. Готовое жидкое тесто (влажность 66%) процеживают. Блинчики выпекают (по 2-3 шт. на порцию) на смазанных растительным маслом и разогретых сковородах диаметром 24-26 см. Налитое тесто поворачиванием сковороды распределяют ровным слоем по всей поверхности и обжаривают с обеих сторон. Отпускают с маслом, джемом, повидлом, медом, вареньем, сахаром, сгущенным молоком. Требования к качеству Внешний вид: изделия круглые, толщиной 1 мм, диаметром 24-26 см, хорошо пропеченные Консистенция: пористая, эластичная Цвет: поверхности - золотистый, равномерный, на разрезе - желтоватый Вкус: жареного изделия из пресного теста и продуктов, входящих в блюдо Запах: жареного изделия из пресного теста и продуктов, входящих в блюдо

Sheet Технологические карты
D1: ТЕХНОЛОГИЧЕСКАЯ КАРТА КУЛИНАРНОГО ИЗДЕЛИЯ (БЛЮДА) № _____
A3: Наименование кулинарного изделия (блюда): | L3: Суп вермишелевый молочный
A5: Наименование сырья | M5: Расход сырья и полуфабрикатов
M6: 1 порц. | S6: 100 порц.
M7: брутто, г | O7: нетто, г | S7: брутто, кг | U7: нетто, кг
A8: МАСЛО СЛИВОЧНОЕ НЕСОЛЕНОЕ "КРЕСТЬЯНСКОЕ" | M8: 5.00 | O8: 5.00 | S8: 0.50 | U8: 0.50
A9: САХАР-ПЕСОК | M9: 5.00 | O9: 5.00 | S9: 0.50 | U9: 0.50
A10: МОЛОКО ПАСТЕРИЗОВАННОЕ, 2,5% ЖИPНОСТИ | M10: 150.00 | O10: 150.00 | S10: 15.00 | U10: 15.00
A11: МАКАРОННЫЕ ИЗДЕЛИЯ | M11: 20.00 | O11: 19.80 | S11: 2.00 | U11: 1.98
A12: Выход: 150
A14: Химический состав, витамины и микроэлементы на 1 порцию:
A15: Белки, г | I15: 6,1 | K15: С, мг | N15: 0,8 | Q15: Са, мг | T15: 166,6
A17: Жиры, г | I17: 7,3 | K17: А, мкг рет. экв. | N17: 42,4 | Q17: Р, мг | T17: 138,4
A18: Углеводы, г | I18: 23,9 | K18: E, мг | N18: 0,5 | Q18: Mg, мг | T18: 21,8
A19: Энергетическая ценность, ккал | I19: 178,2 | K19: Д, мкг | N19: 0,1 | Q19: Fе, мг | T19: 0,6
K20: В1, мг | N20: 0,1 | Q20: Zn, мг | T20: 0,7
K21: В2, мг | N21: 0,2 | Q21: I, мкг | T21: 13,8
K22: B12, мкг | N22: 0
K23: B6, мкг | N23: 0
K24: РР, мг | N24: 0,4
K25: Фолиевая кислота, мкг | N25: 4
A27: Технология приготовления:
A28: В кипящую воду кладут соль, сахар , подготовленную крупу и варят (15-20 минут), добавляя горячее молоко и варят, периодически помешивая, до готовности.
A30: Источник рецептуры:
A31: "Организация питания в дошкольных учреждениях" Метод мат. Москва, 2001
D33: ТЕХНОЛОГИЧЕСКАЯ КАРТА КУЛИНАРНОГО ИЗДЕЛИЯ (БЛЮДА) № _____
A35: Наименование кулинарного изделия (блюда): | L35: БУЛКА С МАСЛОМ И СЫРОМ
A37: Наименование сырья | M37: Расход сырья и полуфабрикатов
M38: 1 порц. | S38: 100 порц.
M39: брутто, г | O39: нетто, г | S39: брутто, кг | U39: нетто, кг
A40: МАСЛО СЛИВОЧНОЕ НЕСОЛЕНОЕ "КРЕСТЬЯНСКОЕ" | M40: 5.00 | O40: 5.00 | S40: 0.50 | U40: 0.50
A41: СЫР РОССИЙСКИЙ | M41: 10.00 | O41: 9.70 | S41: 1.00 | U41: 0.97
A42: ХЛЕБ ПШЕНИЧНЫЙ ФОРМОВОЙ | M42: 30.00 | O42: 30.00 | S42: 3.00 | U42: 3.00
A43: Выход: 30 / 9
A45: Химический состав, витамины и микроэлементы на 1 порцию:
A46: Белки, г | I46: 4,4 | K46: С, мг | N46: 0 | Q46: Са, мг | T46: 84,2
A48: Жиры, г | I48: 6,3 | K48: А, мкг рет. экв. | N48: 36,2 | Q48: Р, мг | T48: 67,8
A49: Углеводы, г | I49: 13,8 | K49: E, мг | N49: 0,7 | Q49: Mg, мг | T49: 12,0
A50: Энергетическая ценность, ккал | I50: 125,5 | K50: Д, мкг | N50: 0,1 | Q50: Fе, мг | T50: 0,6
K51: В1, мг | N51: 0 | Q51: Zn, мг | T51: 0,5
K52: В2, мг | N52: 0 | Q52: I, мкг | T52: 0
K53: B12, мкг | N53: 0,1
K54: B6, мкг | N54: 0
K55: РР, мг | N55: 0,4
K56: Фолиевая кислота, мкг | N56: 10,4
D59: ТЕХНОЛОГИЧЕСКАЯ КАРТА КУЛИНАРНОГО ИЗДЕЛИЯ (БЛЮДА) № _____
A61: Наименование кулинарного изделия (блюда): | L61: ЩИ ИЗ СВЕЖЕЙ КАПУСТЫ С МЯСОМ
A62: Наименование сырья | M62: Расход сырья и полуфабрикатов
M63: 1 порц. | S63: 100 порц.
M64: брутто, г | O64: нетто, г | S64: брутто, кг | U64: нетто, кг
A65: ГОВЯДИНА 1 КАТЕГОРИИ | M65: 30.00 | O65: 22.50 | S65: 3.00 | U65: 2.25
A66: КАПУСТА БЕЛОКОЧАННАЯ | M66: 30.00 | O66: 24.00 | S66: 3.00 | U66: 2.40
A67: МОРКОВЬ | M67: 10.00 | O67: 7.75 | S67: 1.00 | U67: 0.78
A68: ЛУК РЕПЧАТЫЙ | M68: 5.00 | O68: 4.20 | S68: 0.50 | U68: 0.42
A69: МАСЛО СЛИВОЧНОЕ НЕСОЛЕНОЕ "КРЕСТЬЯНСКОЕ" | M69: 2.00 | O69: 2.00 | S69: 0.20 | U69: 0.20
A70: ВОДА | M70: 120.00 | O70: 120.00 | S70: 12.00 | U70: 12.00
A71: СМЕТАНА 20,0% ЖИРНОСТИ | M71: 5.00 | O71: 5.00 | S71: 0.50 | U71: 0.50
A72: СОЛЬ ПОВАРЕННАЯ ПИЩЕВАЯ | M72: 5.00 | O72: 5.00 | S72: 0.50 | U72: 0.50
A73: Выход: 150
A75: Химический состав, витамины и микроэлементы на 1 порцию:
A77: Белки, г | I77: 4,7 | K77: С, мг | N77: 4,7 | Q77: Са, мг | T77: 38,0
A79: Жиры, г | I79: 5,7 | K79: А, мкг рет. экв. | N79: 137,0 | Q79: Р, мг | T79: 57,5
A80: Углеводы, г | I80: 2,0 | K80: E, мг | N80: 0,1 | Q80: Mg, мг | T80: 12,4
A81: Энергетическая ценность, ккал | I81: 75,3 | K81: Д, мкг | N81: 0 | Q81: Fе, мг | T81: 0,9
K82: В1, мг | N82: 0 | Q82: Zn, мг | T82: 0,8
K83: В2, мг | N83: 0 | Q83: I, мкг | T83: 3,3
K84: B12, мкг | N84: 0,6
K85: B6, мкг | N85: 0,1
K86: РР, мг | N86: 1,2
K87: Фолиевая кислота, мкг | N87: 5,4
A89: Технология приготовления:
A90: В кипящий бульон или воду кладут подготовленную свежую капусту, доводят до кипения, добавляют пассированые овощи и варят до готовности. За 5-10 минут до конца варки в щи добавляют пассированный томат-пюре, пассированную муку, разведенную водой.
A92: Источник рецептуры:
A93: Сборник рецептур 1983г., раскладка №196
D95: ТЕХНОЛОГИЧЕСКАЯ КАРТА КУЛИНАРНОГО ИЗДЕЛИЯ (БЛЮДА) № _____
A97: Наименование кулинарного изделия (блюда): | L97: ГРЕЧКА ОТВАРНАЯ С МАСЛОМ
A99: Наименование сырья | M99: Расход сырья и полуфабрикатов
M100: 1 порц. | S100: 100 порц.
M101: брутто, г | O101: нетто, г | S101: брутто, кг | U101: нетто, кг
A102: КРУПА ГРЕЧНЕВАЯ ЯДРИЦА | M102: 40.00 | O102: 39.60 | S102: 4.00 | U102: 3.96
A103: МАСЛО СЛИВОЧНОЕ НЕСОЛЕНОЕ "КРЕСТЬЯНСКОЕ" | M103: 3.00 | O103: 3.00 | S103: 0.30 | U103: 0.30
A104: Выход: 120
A106: Химический состав, витамины и микроэлементы на 1 порцию:
A107: Белки, г | I107: 4,8 | K107: С, мг | N107: 0 | Q107: Са, мг | T107: 7,7
A109: Жиры, г | I109: 3,3 | K109: А, мкг рет. экв. | N109: 9,6 | Q109: Р, мг | T109: 107,0
A110: Углеводы, г | I110: 20,6 | K110: E, мг | N110: 2,7 | Q110: Mg, мг | T110: 71,3
A111: Энергетическая ценность, ккал | I111: 127,6 | K111: Д, мкг | N111: 0 | Q111: Fе, мг | T111: 2,4
K112: В1, мг | N112: 0,2 | Q112: Zn, мг | T112: 0,8
K113: В2, мг | N113: 0,1 | Q113: I, мкг | T113: 1,3
K114: B12, мкг | N114: 0
K115: B6, мкг | N115: 0,2
K116: РР, мг | N116: 1,4
K117: Фолиевая кислота, мкг | N117: 12,7
A119: Технология приготовления:
A120: В кипящую воду кладут соль, всыпают подготовленную крупу и варят до загустения, периодически помешивая. Когда каша загустеет, доводят до готовности при умеренном нагреве, под закрытой крышкой. В процессе упаривания кашу не перемешивают.
A122: Источник рецептуры:
A123: "Организация питания в дошкольных учреждениях" Метод. мат. Москва, 2001г.
D124: ТЕХНОЛОГИЧЕСКАЯ КАРТА КУЛИНАРНОГО ИЗДЕЛИЯ (БЛЮДА) № _____
A126: Наименование кулинарного изделия (блюда): | L126: ГУЛЯШ МЯСНОЙ
A128: Наименование сырья | M128: Расход сырья и полуфабрикатов
M129: 1 порц. | S129: 100 порц.
M130: брутто, г | O130: нетто, г | S130: брутто, кг | U130: нетто, кг
A131: ГОВЯДИНА 1 КАТЕГОРИИ | M131: 55.00 | O131: 41.25 | S131: 5.50 | U131: 4.13
A132: МАСЛО ПОДСОЛНЕЧНОЕ | M132: 2.00 | O132: 2.00 | S132: 0.20 | U132: 0.20
A133: ЛУК РЕПЧАТЫЙ | M133: 5.00 | O133: 4.20 | S133: 0.50 | U133: 0.42
A134: МУКА ПШЕНИЧНАЯ ВЫСШЕГО СОРТА | M134: 3.00 | O134: 2.97 | S134: 0.30 | U134: 0.30
A135: Выход: 55
A137: Химический состав, витамины и микроэлементы на 1 порцию:
A139: Белки, г | I139: 7,7 | K139: С, мг | N139: 0,2 | Q139: Са, мг | T139: 5,0
A141: Жиры, г | I141: 8,1 | K141: А, мкг рет. экв. | N141: 0 | Q141: Р, мг | T141: 74,3
A142: Углеводы, г | I142: 2,2 | K142: E, мг | N142: 1,0 | Q142: Mg, мг | T142: 9,2
A143: Энергетическая ценность, ккал | I143: 107,5 | K143: Д, мкг | N143: 0 | Q143: Fе, мг | T143: 1
K144: В1, мг | N144: 0 | Q144: Zn, мг | T144: 1,3
K145: В2, мг | N145: 0,1 | Q145: I, мкг | T145: 3,1
K146: B12, мкг | N146: 1,1
K147: B6, мкг | N147: 0,2
K148: РР, мг | N148: 1,5
K149: Фолиевая кислота, мкг | N149: 4,7
A151: Технология приготовления:
A152: Нарезанное кубиками по 20-30 гр. обжаренное мясо заливают водой и тушат с добавлением пассированного пюре в закрытой посуде. На бульоне готовят соус, добавляя в него пассированный лук, соль, заливают мясо и тушат 25-30 минут. За 5-10 минут до готовности к
A154: Источник рецептуры:
A155: Сборник рецептур 1983г., №632
D156: ТЕХНОЛОГИЧЕСКАЯ КАРТА КУЛИНАРНОГО ИЗДЕЛИЯ (БЛЮДА) № _____
A158: Наименование кулинарного изделия (блюда): | L158: КОМПОТ ИЗ КУРАГИ
A160: Наименование сырья | M160: Расход сырья и полуфабрикатов
M161: 1 порц. | S161: 100 порц.
M162: брутто, г | O162: нетто, г | S162: брутто, кг | U162: нетто, кг
A163: САХАР-ПЕСОК | M163: 12.00 | O163: 12.00 | S163: 1.20 | U163: 1.20
A164: АБРИКОСЫ СУШЕНЫЕ БЕЗ КОСТОЧКИ (КУРАГА) | M164: 10.00 | O164: 10.00 | S164: 1.00 | U164: 1.00
A165: Выход: 150
A167: Химический состав, витамины и микроэлементы на 1 порцию:
A169: Белки, г | I169: 0,1 | K169: С, мг | N169: 0,4 | Q169: Са, мг | T169: 2,0
A171: Жиры, г | I171: 0 | K171: А, мкг рет. экв. | N171: 6,6 | Q171: Р, мг | T171: 3,1
A172: Углеводы, г | I172: 11,8 | K172: E, мг | N172: 0,2 | Q172: Mg, мг | T172: 1,4
A173: Энергетическая ценность, ккал | I173: 47,2 | K173: Д, мкг | N173: 0 | Q173: Fе, мг | T173: 0,1
K174: В1, мг | N174: 0 | Q174: Zn, мг | T174: 0
K175: В2, мг | N175: 0 | Q175: I, мкг | T175: 0,2
K176: B12, мкг | N176: 0
K177: B6, мкг | N177: 0
K178: РР, мг | N178: 0,1
K179: Фолиевая кислота, мкг | N179: 0,8
A181: Технология приготовления:
A182: Подготовленные сушеные плоды ягоды заливают горячей водой, нагревают до кипения, всыпают сахар и варят до готовности.
A184: Источник рецептуры:
A185: Сборник рецептур 1983г., раскладка №933
D186: ТЕХНОЛОГИЧЕСКАЯ КАРТА КУЛИНАРНОГО ИЗДЕЛИЯ (БЛЮДА) № _____
A188: Наименование кулинарного изделия (блюда): | L188: САЛАТ ИЗ ЗЕЛЕНОГО ГОРОШКА
A190: Наименование сырья | M190: Расход сырья и полуфабрикатов
M191: 1 порц. | S191: 100 порц.
M192: брутто, г | O192: нетто, г | S192: брутто, кг | U192: нетто, кг
A193: МАСЛО РАСТИТЕЛЬНОЕ | M193: 2.00 | O193: 2.00 | S193: 0.20 | U193: 0.20
A194: ГОРОШЕК ЗЕЛЕНЫЙ (КОНСЕРВЫ) | M194: 40.00 | O194: 26.68 | S194: 4.00 | U194: 2.67
A195: ЛУК РЕПЧАТЫЙ | M195: 5.00 | O195: 4.20 | S195: 0.50 | U195: 0.42
A196: Выход: 32
A198: Химический состав, витамины и микроэлементы на 1 порцию:
A200: Белки, г | I200: 0,9 | K200: С, мг | N200: 1,3 | Q200: Са, мг | T200: 6,0
A202: Жиры, г | I202: 2,0 | K202: А, мкг рет. экв. | N202: 0 | Q202: Р, мг | T202: 17,1
A203: Углеводы, г | I203: 1,8 | K203: E, мг | N203: 0,3 | Q203: Mg, мг | T203: 5,5
A204: Энергетическая ценность, ккал | I204: 27,3 | K204: Д, мкг | N204: 0 | Q204: Fе, мг | T204: 0,2
K205: В1, мг | N205: 0 | Q205: Zn, мг | T205: 0,2
K206: В2, мг | N206: 0 | Q206: I, мкг | T206: 0,1
K207: B12, мкг | N207: 0
K208: B6, мкг | N208: 0
K209: РР, мг | N209: 0,2
K210: Фолиевая кислота, мкг | N210: 3,6
A212: Технология приготовления:
A213: Мелко нарубленный репчатый лук смешать прокипяченым зеленым горошком, заправить растительным маслом.
A215: Источник рецептуры:
A216: "Организация детского питания в дошкольных учреждениях" Метод. мат. Москва 2001
D217: ТЕХНОЛОГИЧЕСКАЯ КАРТА КУЛИНАРНОГО ИЗДЕЛИЯ (БЛЮДА) № _____
A219: Наименование кулинарного изделия (блюда): | L219: МОРКОВЬ В МОЛОЧНОМ СОУСЕ
A221: Наименование сырья | M221: Расход сырья и полуфабрикатов
M222: 1 порц. | S222: 100 порц.
M223: брутто, г | O223: нетто, г | S223: брутто, кг | U223: нетто, кг
A224: МОРКОВЬ | M224: 150.00 | O224: 116.25 | S224: 15.00 | U224: 11.63
A225: МАСЛО СЛИВОЧНОЕ НЕСОЛЕНОЕ "КРЕСТЬЯНСКОЕ" | M225: 2.00 | O225: 2.00 | S225: 0.20 | U225: 0.20
A226: САХАР-ПЕСОК | M226: 3.00 | O226: 3.00 | S226: 0.30 | U226: 0.30
A227: КРУПА МАННАЯ | M227: 3.00 | O227: 2.97 | S227: 0.30 | U227: 0.30
A228: МОЛОКО ПАСТЕРИЗОВАННОЕ, 2,5% ЖИPНОСТИ | M228: 100.00 | O228: 100.00 | S228: 10.00 | U228: 10.00
A229: Выход: 150
A231: Химический состав, витамины и микроэлементы на 1 порцию:
A232: Белки, г | I232: 4,4 | K232: С, мг | N232: 2,8 | Q232: Са, мг | T232: 162,5
A234: Жиры, г | I234: 3,9 | K234: А, мкг рет. экв. | N234: 1884,0 | Q234: Р, мг | T234: 141,3
A235: Углеводы, г | I235: 16,2 | K235: E, мг | N235: 0,8 | Q235: Mg, мг | T235: 52,9
A236: Энергетическая ценность, ккал | I236: 115,0 | K236: Д, мкг | N236: 0 | Q236: Fе, мг | T236: 1,2
K237: В1, мг | N237: 0,1 | Q237: Zn, мг | T237: 0,9
K238: В2, мг | N238: 0,3 | Q238: I, мкг | T238: 14,8
K239: B12, мкг | N239: 0
K240: B6, мкг | N240: 0,2
K241: РР, мг | N241: 1,1
K242: Фолиевая кислота, мкг | N242: 11,2
A244: Технология приготовления:
A245: Морковь нарезают кубиками, дольками или брусочками, складывают в кастрюлю, добавляют воду, сливочное масло , доводят до кипения и припускают при небольшом нагреве до готовности. Посуда должна быть плотно закрыта крышкой. Припущенную морковь соединяют
A247: Источник рецептуры:
A248: "Организация питания в дошкольных учреждениях" Метод. мат. Москва, 2001г.
D250: ТЕХНОЛОГИЧЕСКАЯ КАРТА КУЛИНАРНОГО ИЗДЕЛИЯ (БЛЮДА) № _____
A251: Наименование кулинарного изделия (блюда): | L251: ЯЙЦО 1/2
A253: Наименование сырья | M253: Расход сырья и полуфабрикатов
M254: 1 порц. | S254: 100 порц.
M255: брутто, г | O255: нетто, г | S255: брутто, кг | U255: нетто, кг
... 1471 more rows
